Workbook

Sheet CIRCLE
A1: FERMAT'S PRINCIPLE | D1: Caerafco | E1: 1 | F1: Cmesofco | G1: =E1/nf -> 0.625 | H1: nf | I1: 1.6 | K1: =yAfco -> 6.975 | L1: yafco | T1: xA | U1: -5 | V1: xB | W1: 5 | Y1: SCROLLS | Z1: for xafco | AA1: 55 | AD1: extrema at | AN1: CIRCLE
A2: ` | K2: =xAfco -> -9.5 | L2: xafco | N2: =COUNTA(C8:C118) -> 111 | O2: 14 | P2: for point of incidence | T2: yA | U2: 4 | V2: yB | W2: -4 | Y2: SCROLLS | Z2: for yafco | AA2: 279 | AD2: x | AE2: y | AF2: Se Youn Mak condition: the following quantity should be <2 for extremum
A3: POINT A | C3: rcyclef | D3: 8 | E3: POINT B | F3: xcf | G3: 0 | H3: ycf | I3: -7 | P3: POINT OF | T3: RADIUS FROM CENTER | Y3: SCROLLS | Z3: for xbfco | AA3: 216 | AD3: -9.6 | AE3: 6.975 | AV3: 62.64099573 | AW3: 3.676515407 | AX3: 32.51121079
A4: xAfco | C4: =(AA1-150)/10 -> -9.5 | D4: xBfco | E4: =(AA3-150)/10 -> 6.6 | G4: =xBfco -> 6.6 | H4: ybfco | L4: 66 | P4: INCIDENCE | T4: 0 | U4: =ycf -> -7 | Y4: SCROLLS | Z4: for ybfco | AA4: 419 | AD4: -1.5425 | AE4: 0.8498849514 | AF4: 3.940947329 | AG4: MINIMUM | AV4: 62.95022459 | AW4: 3.638115085 | AX4: 32.51491304
A5: yAfco | C5: =AA2/40 -> 6.975 | D5: yBfco | E5: =-AA4/40 -> -10.475 | G5: =yBfco -> -10.475 | T5: =xcf+2*rcyclef*COS(U6)*SIGN(AB15) -> -6.85 | U5: =ycf+2*rcyclef*SIN(U6)*SIGN(AB15) -> 7.45951244 | W5: cuts | AD5: 6.6 | AE5: -10.475 | AV5: 63.25945345 | AW5: 3.599608792 | AX5: 32.51848893
T6: KLISI | U6: =ATAN((AC15-ycf)/(AB15-xcf)) -> -1.128379331 | W6: -3.425 | X6: 0.22975622 | AD6: 2.2825 | AE6: 0.6674763612 | AF6: -7.84812113 | AG6: MAXIMUM | AV6: 63.5686823 | AW6: 3.560997648 | AX6: 32.52193939
A7: x | B7: Ykykl | C7: dΑΓ | D7: tΑΓ | E7: dΓΒ | F7: tΓΒ | G7: tΑΓ+tΓΒ | H7: exoteriko1 | I7: ημ(θ1) | J7: exoteriko2 | K7: ημθ2 | L7: ημθ1/ημθ2 | M7: θ1 | N7: θ2 | O7: x extremum | P7: yextremum | W7: 6.899902804 | X7: -11.04862215 | AA7: =xAfco -> -9.5 | AB7: =yAfco -> 6.975 | AD7: -9.6 | AE7: 6.975 | AV7: 63.87791116 | AW7: 3.522282779 | AX7: 32.52526537
A8: -7 | B8: =ycf+SQRT(rcyclef^2-(A8-xcf)^2) -> -3.127016654 | C8: =SQRT((A8-xAfco)^2+(yAfco-B8)^2) -> 10.40676417 | D8: =C8/Caerafco -> 10.40676417 | E8: =SQRT((A8-xBfco)^2+(yBfco-B8)^2) -> 15.45810012 | F8: =E8/Cmesofco -> 24.73296019 | G8: =F8+D8 -> 35.13972436 | H8: =(A8-xAfco)*(B8-ycf)-(B8-yAfco)*(A8-xcf) -> -61.03165821 | I8: =H8/(C8*rcyclef) -> -0.7330767905 | J8: =(A8-xcf)*(B8-yBfco)-(B8-ycf)*(A8-xBfco) -> 1.236690085 | K8: =J8/(E8*rcyclef) -> 0.01000034024 | L8: =(I8/K8) -> -73.30518492 | M8: =DEGREES(ASIN(I8)) -> -47.14495626 | N8: =DEGREES(ASIN(K8)) -> 0.5729868401 | O8: =IF(OR(AND(G8<G7,G8<G9),AND(G8>G7,G8>G9)),A8,"") ->  | P8: =IF(O8<>"",B8,"") ->  | W8: TANGENT | Y8: LIMITING ANGLE | AR8: 64.88772715 | AS8: 3.395147099 | AT8: 33.74241496 | AV8: 64.18714002 | AW8: 3.483465312 | AX8: 32.5284678
A9: =A8+(xb-xa)/80 -> -6.8875 | B9: -2.930314048 | C9: =SQRT((A9-xAfco)^2+(yAfco-B9)^2) -> 10.2440423 | D9: =C9/Caerafco -> 10.2440423 | E9: =SQRT((A9-xBfco)^2+(yBfco-B9)^2) -> 15.45428557 | F9: =E9/Cmesofco -> 24.72685691 | G9: =F9+D9 -> 34.97089921 | H9: =(A9-xAfco)*(B9-ycf)-(B9-yAfco)*(A9-xcf) -> -57.59079595 | I9: =H9/(C9*rcyclef) -> -0.7027352371 | J9: =(A9-xcf)*(B9-yBfco)-(B9-ycf)*(A9-xBfco) -> 2.925864785 | K9: =J9/(E9*rcyclef) -> 0.02366548078 | L9: =(I9/K9) -> -29.69452611 | M9: =DEGREES(ASIN(I9)) -> -44.64686648 | N9: =DEGREES(ASIN(K9)) -> 1.356058767 | O9: =IF(OR(AND(G9<G8,G9<G10),AND(G9>G8,G9>G10)),A9,"") ->  | P9: =IF(O9<>"",B9,"") ->  | V9: 1st tangent | W9: -7.951187807 | X9: -7.882390193 | Y9: =DEGREES(Z9) -> 186.3325389 | Z9: 3.252116307 | AB9: 3.252116307 | AC9: t | AD9: gonia | AR9: 65.19900099 | AS9: 3.355743283 | AT9: 33.74497406 | AV9: 64.49636888 | AW9: 3.444546378 | AX9: 32.53154767
A10: -6.775 | B10: -2.745663977 | C10: 10.09539168 | D10: 10.09539168 | E10: 15.44775907 | F10: 24.71641452 | G10: 34.81180619 | H10: -54.26443278 | I10: -0.6718960802 | J10: 4.535492754 | K10: 0.03670024834 | L10: =(I10/K10) -> -18.30767122 | M10: =DEGREES(ASIN(I10)) -> -42.21357439 | N10: =DEGREES(ASIN(K10)) -> 2.103241663 | V10: SOURCE | W10: -9.6 | X10: 6.975 | AC10: 33.52570408 | AD10: -1.5425 | AE10: 32.43846134 | AF10: -1.99 | AG10: 33.3692871 | AH10: =ycf+rcyclef*SIN(AD10) -> -14.99679749 | AR10: 65.51027484 | AS10: 3.316240423 | AT10: 33.74740243 | AV10: 64.80559774 | AW10: 3.405527111 | AX10: 32.53450595
A11: =A10+(xb-xAfco)/80 -> -6.60625 | B11: -2.488075695 | C11: 9.89563493 | D11: 9.89563493 | E11: 15.43359967 | F11: 24.69375948 | G11: 34.58939441 | H11: -49.45906285 | I11: -0.6247585829 | J11: 6.821981666 | K11: 0.05525267767 | L11: -11.30729965 | M11: -38.66447028 | N11: 3.167358216 | V11: 2ND tangent | W11: 3.676515407 | X11: 0.105155485 | Y11: =DEGREES(Z11) -> 62.64099573 | Z11: =ATAN2(W11,X11-ycf) -> 1.093291622 | AC11: 33.77018252 | AD11: 2.2825 | AE11: 32.57236807 | AF11: 2.51 | AG11: 33.59230665 | AH11: =ycf+rcyclef*SIN(AD11) -> -0.9419978862 | AR11: 65.82154868 | AS11: 3.276639685 | AT11: 33.7497011 | AV11: 65.11482659 | AW11: 3.366408647 | AX11: 32.53734363
A12: -6.49375 | B12: -2.327611859 | C12: 9.776304336 | D12: 9.776304336 | E12: 15.42161543 | F12: 24.67458469 | G12: 34.45088903 | H12: -46.36246891 | I12: -0.5927913468 | J12: 8.271980479 | K12: =J12/(E12*rcyclef) -> 0.06704858932 | L12: -8.841220268 | M12: -36.35534186 | N12: 3.844485357 | W12: -7.925205755 | X12: -8.091381578 | AV12: 65.42405545 | AW12: 3.327192125 | AX12: 32.54006171
A13: -6.38125 | B13: -2.175101199 | C13: 9.667003337 | D13: 9.667003337 | E13: 15.40782826 | F13: 24.65252521 | G13: 34.31952855 | H13: -43.34143014 | I13: -0.5604300091 | J13: 9.669488335 | K13: 0.07844623016 | L13: -7.144129271 | M13: -34.08554095 | N13: 4.499260578 | U13: x FOR REFRACTION | V13: y FOR REFRACTION | W13: ANGLE RAD | X13: ANGLE DEGREES | Z13: T for ray | AA13: 7.990899316 | AB13: -0.3814814797 | AV13: 65.73328431 | AW13: 3.287878689 | AX13: 32.54266121
A14: -6.26875 | B14: -2.029811529 | C14: 9.567006179 | D14: 9.567006179 | E14: 15.39239861 | F14: 24.62783777 | G14: 34.19484395 | H14: -40.38899078 | I14: -0.5277119877 | J14: 11.01933766 | K14: 0.08948684624 | L14: -5.897090018 | M14: -31.85099301 | N14: 5.134086427 | U14: 2.276941092 | V14: 0.6691289768 | W14: 1.282188782 | X14: =DEGREES( W14) -> 73.46400576 | Z14: =SQRT((AB14-AB15)^2+(AC14-AC15)^2)+nf*SQRT((AB15-AB16)^2+(AC15-AC16)^2) -> 32.54330923 | AA14: IN AIR | AB14: =xAfco -> -9.5 | AC14: =yAfco -> 6.975 | AD14: SOURCE | AV14: 66.04251317 | AW14: 3.248469482 | AX14: 32.54514316
A15: -6.15625 | B15: -1.891126745 | C15: 9.475698788 | D15: 9.475698788 | E15: 15.37546078 | F15: 24.60073724 | G15: 34.07643603 | H15: -37.49929783 | I15: -0.4946772088 | J15: 12.32559473 | K15: 0.1002050842 | L15: -4.936647804 | M15: -29.64846738 | N15: 5.750980255 | U15: -1.524467273 | V15: 0.8534068743 | W15: 1.762527274 | X15: =DEGREES( W15) -> 100.9853741 | AB15: -3.425 | AC15: 0.22975622 | AD15: ON CIRCLE | AV15: 66.35174203 | AW15: 3.208965653 | AX15: 32.54750861
A16: -6.04375 | B16: -1.758522542 | C16: 9.392554501 | D16: 9.392554501 | E16: 15.35712842 | F16: 24.57140547 | G16: 33.96395997 | H16: -34.6673704 | I16: -0.4613677035 | J16: 13.59171997 | K16: 0.1106303828 | L16: -4.17035259 | M16: -27.47539818 | N16: 6.351655641 | S16: Se Youn Mak condition: the following quantity should be <2 for extremum | AA16: IN DENSE | AB16: =xBfco -> 6.6 | AC16: =yBfco -> -10.475 | AD16: END POINT | AV16: 66.66097088 | AW16: 3.169368353 | AX16: 32.5497586
A17: -5.93125 | B17: -1.63154832 | C17: 9.317116 | D17: 9.317116 | E17: 15.33749863 | F17: 24.53999781 | G17: 33.85711381 | H17: -31.88892779 | I17: -0.4278272348 | J17: 14.82068734 | K17: 0.1207880087 | L17: -3.541967779 | M17: -25.32974983 | N17: 6.937582966 | S17: =AD3 -> -9.6 | T17: 6.975 | U17: 0 | AV17: 66.97019974 | AW17: 3.129678735 | AX17: 32.55189421
A18: -5.81875 | B18: -1.509813442 | C18: 9.248981604 | D18: 9.248981604 | E18: 15.31665504 | F18: 24.50664806 | G18: 33.75562967 | H18: -29.16025895 | I18: -0.3941009427 | J18: 16.01507503 | K18: 0.130699841 | L18: -3.015313099 | M18: -23.20991395 | N18: 7.510035313 | S18: -1.5425 | T18: 0.8498849514 | U18: 3.940947329 | V18: =AG4 -> MINIMUM | AV18: 67.2794286 | AW18: 3.089897954 | AX18: 32.55391652
A19: -5.70625 | B19: -1.392976642 | C19: 9.187794738 | D19: 9.187794738 | E19: 15.29467023 | F19: 24.47147236 | G19: 33.6592671 | H19: -26.47812185 | I19: -0.3602349993 | J19: 17.17713541 | K19: 0.1403849769 | L19: -2.566050921 | M19: -21.11462883 | N19: 8.070123807 | S19: 6.6 | T19: -10.475 | U19: 0 | AV19: 67.58865746 | AW19: 3.050027171 | AX19: 32.55582662
A20: -5.59375 | B20: -1.280737728 | C20: 9.133235708 | D20: 9.133235708 | E20: 15.27160757 | F20: 24.43457211 | G20: 33.56780782 | H20: -23.83966466 | I20: -0.3262762704 | J20: 18.30884975 | K20: 0.1498602035 | L20: -2.177204239 | M20: -19.04291538 | N20: 8.618825237 | S20: 2.2825 | T20: 0.6674763612 | U20: -7.84812113 | V20: =AG6 -> MAXIMUM | AV20: 67.89788631 | AW20: 3.010067546 | AX20: 32.55762564
A21: -5.48125 | B21: -1.17283101 | C21: 9.08501523 | D21: 9.08501523 | E21: 15.24752273 | F21: 24.39603637 | G21: 33.4810516 | H21: -21.24236335 | I21: -0.2922719831 | J21: 19.41197158 | K21: 0.1591403725 | L21: -1.836567167 | M21: -16.9940254 | N21: 9.157003903 | AV21: 68.20711517 | AW21: 2.970020243 | AX21: 32.55931468
A22: -5.36875 | B22: -1.069020027 | C22: 9.042869277 | D22: 9.042869277 | E22: 15.22246484 | F22: 24.35594374 | G22: 33.39881302 | H22: -18.68397151 | I22: -0.2582694018 | J22: 20.48806157 | K22: 0.1682387001 | L22: -1.535136694 | M22: -14.96739931 | N22: 9.685429121 | R22: INCIDENCE ANGLE | U22: =R40 -> 16.65866815 | W22: =SIN(RADIANS(U22))/SIN(RADIANS(U23)) -> 0.9391283344 | X22: index of refraction | AV22: 68.51634403 | AW22: 2.929886428 | AX22: 32.5608949
A23: -5.25625 | B23: -0.969093274 | C23: 9.006554947 | D23: 9.006554947 | E23: 15.19647745 | F23: 24.31436391 | G23: 33.32091886 | H23: -16.16247985 | I23: -0.2243155117 | J23: 21.53851564 | K23: 0.1771670089 | L23: -1.266124619 | M23: -12.96263106 | N23: 10.20478937 | R23: REFRACTION ANGLE | U23: =T40 -> 17.77324166 | AV23: 68.82557289 | AW23: 2.889667272 | AX23: 32.56236744
A24: -5.14375 | B24: -0.8728607052 | C24: 8.975847131 | D24: 8.975847131 | E24: 15.16959931 | F24: 24.27135889 | G24: 33.24720602 | H24: -13.67608295 | I24: -0.1904567161 | J24: 22.5645881 | K24: 0.1859359272 | L24: -1.024313692 | M24: -10.97943882 | N24: 10.71570388 | AV24: 69.13480175 | AW24: 2.849363944 | AX24: 32.56373348
A25: -5.03125 | B25: -0.7801508509 | C25: 8.95053581 | D25: 8.95053581 | E25: 15.14186503 | F25: 24.22698405 | G25: 33.17751986 | H25: -11.22315183 | I25: -0.1567385472 | J25: 23.56741063 | K25: 0.1945550514 | L25: -0.8056256881 | M25: -9.017640228 | N25: 11.21873211 | R25: y | T25: x | U25: y | AV25: 69.4440306 | AW25: 2.80897762 | AX25: 32.56499418
A26: -4.91875 | B26: -0.6908084165 | C26: 8.930423856 | D26: 8.930423856 | E26: 15.11330561 | F26: 24.18128898 | G26: 33.11171283 | H26: -8.802211207 | I26: -0.1232053952 | J26: 24.5480082 | K26: 0.2030330825 | L26: -0.6068242363 | M26: -7.077131408 | N26: 11.71438174 | Q26: =xAfco -> -9.5 | R26: =yAfco -> 6.975 | T26: =xAfco -> -9.5 | U26: =yAfco -> 6.975 | W26: CUT OF INCIDENT RAY WITH CIRCLE | AV26: 69.75325946 | AW26: 2.768509475 | AX26: 32.56615076
A27: -4.80625 | B27: -0.6046922719 | C27: 8.915325232 | D27: 8.915325232 | E27: 15.08394888 | F27: 24.1343182 | G27: 33.04964343 | H27: -6.411920333 | I27: -0.08990025834 | J27: 25.50731226 | K27: 0.2113779394 | L27: -0.425305775 | M27: -5.157869054 | N27: 12.20311524 | Q27: =xBfco -> 6.6 | R27: =yBfco -> -10.475 | T27: =xa+O2*(xb-xa)/80 -> -3.425 | U27: =IF(rcyclef^2-xcircle^2>=0,ycf+SQRT(rcyclef^2-xcircle^2),"") -> 0.22975622 | V27: =SQRT(rcyclef^2-xcircle^2) -> 7.22975622 | AV27: 70.06248832 | AW27: 2.727960688 | AX27: 32.56720442
A28: -4.69375 | B28: -0.5216737549 | C28: 8.905063529 | D28: 8.905063529 | E28: 15.05381986 | F28: 24.08611178 | G28: 32.99117531 | H28: -4.051056922 | I28: -0.05686451462 | J28: 26.44617197 | K28: 0.2195968549 | L28: -0.2589495858 | M28: -3.259855134 | N28: 12.68535546 | T28: =xBfco -> 6.6 | U28: =yBfco -> -10.475 | AV28: 70.37171718 | AW28: 2.687332441 | AX28: 32.56815638
A29: -4.58125 | B29: -0.4416352314 | C29: 8.899470755 | D29: 8.899470755 | E29: 15.02294113 | F29: 24.03670581 | G29: 32.93617656 | H29: -1.718503449 | I29: -0.02413771976 | J29: 27.36536372 | K29: 0.2276964568 | L29: -0.106008324 | M29: -1.3831238 | N29: 13.16149036 | AV29: 70.68094604 | AW29: 2.646625917 | AX29: 32.5690079
A30: -4.46875 | B30: -0.3644688655 | C30: 8.898386359 | D30: 8.898386359 | E30: 14.99133304 | F30: 23.98613287 | G30: 32.88451923 | H30: 0.5867645282 | I30: 0.008242569278 | J30: 28.26559924 | K30: 0.2356828372 | L30: 0.03497314177 | M30: 0.4722697797 | N30: 13.6318771 | Q30: x | R30: dΑΓ | S30: tΑΓ | T30: dΓΒ | U30: tΓΒ | V30: tΑΓ+tΓΒ | W30: FOR POINT ON CIRCLE | AV30: 70.99017489 | AW30: 2.605842301 | AX30: 32.56976022
A31: -4.35625 | B31: -0.290075564 | C31: 8.90165642 | D31: 8.90165642 | E31: 14.959014 | F31: 23.9344224 | G31: 32.83607882 | H31: 2.865688392 | I31: 0.04024094305 | J31: 29.14753253 | K31: 0.2435616122 | L31: 0.1652187416 | M31: 2.30625892 | N31: 14.09684541 | Q31: =AB15 -> -3.425 | R31: =SQRT((AB15-AB14)^2+(AC15-AC14)^2) -> 9.077661519 | S31: =R31/Caerafco -> 9.077661519 | T31: =SQRT((AB15-AB16)^2+(AC15-AC16)^2) -> 14.66602982 | U31: =T31/Cmesofco -> 23.46564771 | V31: =U31+S31 -> 32.54330923 | AV31: 71.29940375 | AW31: 2.564982782 | AX31: 32.57041462
A32: -4.24375 | B32: -0.2183640663 | C32: 8.909132991 | D32: 8.909132991 | E32: 14.92600063 | F32: 23.881601 | G32: 32.790734 | H32: 5.11913512 | I32: 0.07182426064 | J32: 30.01176591 | K32: 0.2513379728 | L32: 0.2857676453 | M32: 4.118773461 | N32: 14.55670065 | Q32: ycc | R32: =ycf+SQRT(rcyclef^2-(Q31-xcf)^2) -> 0.22975622 | AV32: 71.60863261 | AW32: 2.524048549 | AX32: 32.57097238
A33: -4.13125 | B33: -0.1492501551 | C33: 8.920673564 | D33: 8.920673564 | E33: 14.89230796 | F33: 23.82769274 | G33: 32.7483663 | H33: 7.347904777 | I33: 0.1029617428 | J33: 30.85885523 | K33: 0.2590167295 | L33: 0.3975100102 | M33: 5.909746505 | N33: 15.01172636 | AV33: 71.91786147 | AW33: 2.483040795 | AX33: 32.57143482
A34: -4.01875 | B34: -0.08265596941 | C34: 8.936140629 | D34: 8.936140629 | E34: 14.85794959 | F34: 23.77271934 | G34: 32.70885997 | H34: 9.552737041 | I34: 0.1336250379 | J34: 31.68931435 | K34: 0.2666023512 | L34: 0.5012147766 | M34: 7.679120009 | N34: 15.46218653 | Q34: =xcf -> 0 | R34: =ycf -> -7 | AV34: 72.22709032 | AW34: 2.441960715 | AX34: 32.57180324
A35: -3.90625 | B35: -0.01850940432 | C35: 8.955401323 | D35: 8.955401323 | E35: 14.82293779 | F35: 23.71670046 | G35: 32.67210178 | H35: 11.73431691 | I35: 0.1637882615 | J35: 32.50361918 | K35: 0.2740989982 | L35: 0.597551478 | M35: 9.426849353 | N35: 15.90832754 | Q35: =IF(klisi>0,xcf+1.5*rcyclef*COS(ATAN(klisi)),xcf-1.5*rcyclef*COS(ATAN(klisi))) -> -5.1375 | R35: =IF(klisi>0,ycf+1.5*rcyclef*SIN(ATAN(klisi)),ycf-1.5*rcyclef*SIN(ATAN(klisi))) -> 3.84463433 | S35: klisi | T35: =(ycc-ycf)/(Q31-xcf) -> -2.110877728 | AV35: 72.53631918 | AW35: 2.400809505 | AX35: 32.57207898
A36: -3.79375 | B36: 0.04325641571 | C36: 8.978327137 | D36: 8.978327137 | E36: 14.78728363 | F36: 23.6596538 | G36: 32.63798094 | H36: 13.8932797 | I36: 0.1934280112 | J36: 33.30221109 | K36: 0.2815105527 | L36: 0.687107497 | M36: 11.152907 | N36: 16.35037991 | Q36: =IF(klisi>0,xcf+1.5*rcyclef*COS(ATAN(klisi)),xcf-1.5*rcyclef*COS(ATAN(klisi))) -> -5.1375 | R36: =IF(klisi>0,ycf+1.5*rcyclef*SIN(ATAN(klisi)),ycf-1.5*rcyclef*SIN(ATAN(klisi))) -> 3.84463433 | AV36: 72.84554804 | AW36: 2.359588364 | AX36: 32.57226341
A37: -3.68125 | B37: 0.1027036006 | C37: 9.004793688 | D37: 9.004793688 | E37: 14.75099709 | F37: 23.60159534 | G37: 32.60638903 | H37: 16.03021546 | I37: 0.2225233583 | J37: 34.08550001 | K37: 0.2888406443 | L37: 0.7704018208 | M37: 12.85728533 | N37: 16.78855982 | AV37: 73.1547769 | AW37: 2.318298492 | AX37: 32.57235787
A38: -3.56875 | B38: 0.159889904 | C38: 9.034680525 | D38: 9.034680525 | E38: 14.71408712 | F38: 23.5425394 | G38: 32.57721992 | H38: 18.14567284 | I38: 0.2510558175 | J38: 34.85386712 | K38: 0.2960926732 | L38: 0.8478960819 | M38: 14.53999881 | N38: 17.2230704 | Q38: exoteriko1 | R38: ημθ1 | S38: exoteriko2 | T38: ημθ2 | U38: ημθ1/ημθ2 | AV38: 73.46400576 | AW38: 2.276941092 | AX38: 32.57236376
A39: -3.45625 | B39: 0.2148690867 | C39: 9.067870975 | D39: 9.067870975 | E39: 14.67656176 | F39: 23.48249882 | G39: 32.55036979 | H39: 20.24016257 | I39: 0.2790092987 | J39: 35.60766722 | K39: 0.3032698308 | L39: 0.9200034766 | M39: 16.20108547 | N39: 17.65410303 | Q39: =(AB15-xAfco)*(AC15-ycf)-(AC15-AC14)*(AB15-xcf) -> 20.81830909 | R39: =Q39/(rcyclef*R31) -> 0.2866694942 | S39: =(AB15-xcf)*(AC15-yBfco)-(AC15-ycf)*(AB15-xBfco) -> 35.81451605 | T39: =S39/(T31*rcyclef) -> 0.3052506071 | U39: =ABS(R39/T39) -> 0.9391283344 | AV39: 73.77323461 | AW39: 2.235517369 | AX39: 32.57228248
A40: -3.34375 | B40: =ycf+SQRT(rcyclef^2-(A40-xcf)^2) -> 0.2676912385 | C40: 9.104252022 | D40: 9.104252022 | E40: 14.63842816 | F40: 23.42148506 | G40: 32.52573708 | H40: 22.31416052 | I40: 0.3063700409 | J40: 36.34723092 | K40: =J40/(E40*rcyclef) -> 0.3103751178 | L40: 0.9870960117 | M40: 17.84060785 | N40: 18.08183828 | Q40: =AB15 -> -3.425 | R40: =DEGREES(ASIN(R39)) -> 16.65866815 | T40: =DEGREES(ASIN(T39)) -> 17.77324166 | AV40: 74.08246347 | AW40: 2.194028529 | AX40: 32.57211544
A41: -3.23125 | B41: 0.3184030661 | C41: 9.143714196 | D41: 9.143714196 | E41: 14.59969268 | F41: 23.35950829 | G41: 32.50322248 | H41: 24.36811038 | I41: 0.3331265317 | J41: 37.07286649 | K41: 0.3174113601 | L41: 1.049510426 | M41: 19.45865351 | N41: 18.50644694 | AV41: 74.39169233 | AW41: 2.152475782 | AX41: 32.57186408
A42: -3.11875 | B42: 0.3670481495 | C42: 9.186151491 | D42: 9.186151491 | E42: 14.5603609 | F42: 23.29657745 | G42: 32.48272894 | H42: 26.40242617 | I42: 0.3592694149 | J42: 37.78486154 | K42: 0.324381224 | L42: 1.107553053 | M42: 21.05533508 | N42: 18.92809086 | AV42: 74.70092119 | AW42: 2.110860336 | AX42: 32.57152986
A43: -3.00625 | B43: 0.413667172 | C43: 9.23146129 | D43: 9.23146129 | E43: 14.52043773 | F43: 23.23270037 | G43: 32.46416166 | H43: 28.41749438 | I43: 0.3847913875 | J43: 38.48348459 | K43: 0.3312872286 | L43: 1.161503838 | M43: 22.63078995 | N43: 19.34692365 | AV43: 75.01015005 | AW43: 2.069183405 | AX43: 32.57111423
A44: -2.89375 | B44: 0.4582981261 | C44: 9.279544298 | D44: 9.279544298 | E44: 14.47992738 | F44: 23.16788381 | G44: 32.44742811 | H44: 30.41367595 | I44: 0.4096870893 | J44: 39.16898638 | K44: 0.3381317578 | L44: 1.211619672 | M44: 24.18517976 | N44: 19.76309147 | AV44: 75.3193789 | AW44: 2.027446202 | AX44: 32.57061869
A45: -2.78125 | B45: 0.5009764989 | C45: 9.330304489 | D45: 9.330304489 | E45: 14.43883346 | F45: 23.10213353 | G45: 32.43243802 | H45: 32.39130799 | I45: 0.4339529866 | J45: 39.84160114 | K45: 0.3449170708 | L45: 1.258137168 | M45: 25.71868949 | N45: 20.17673355 | AV45: 75.62860776 | AW45: 1.985649944 | AX45: 32.57004473
A46: -2.66875 | B46: 0.5417354394 | C46: 9.383649049 | D46: 9.383649049 | E46: 14.39715897 | F46: 23.03545435 | G46: 32.41910339 | H46: 34.35070542 | I46: 0.4575872516 | J46: 40.50154765 | K46: 0.351645312 | L46: 1.301274995 | M46: 27.23152651 | N46: 20.58798281 | AV46: 75.93783662 | AW46: 1.943795847 | AX46: 32.56939389
A47: -2.55625 | B47: 0.5806059083 | C47: 9.439488326 | D47: 9.439488326 | E47: 14.35490634 | F47: 22.96785015 | G47: 32.40733847 | H47: 36.29216238 | I47: 0.4805896401 | J47: 41.14903025 | K47: 0.358318519 | L47: 1.341235841 | M47: 28.72391942 | N47: 20.99696638 | AV47: 76.24706548 | AW47: 1.901885131 | AX47: 32.56866769
A48: -2.44375 | B48: 0.6176168148 | C48: 9.497735784 | D48: 9.497735784 | E48: 14.31207748 | F48: 22.89932397 | G48: 32.39705976 | H48: 38.21595349 | I48: 0.5029613684 | J48: 41.78423973 | K48: 0.3649386312 | L48: 1.378208075 | M48: 30.19611672 | N48: 21.40380601 | AV48: 76.55629433 | AW48: 1.859919016 | AX48: 32.56786769
A49: -2.33125 | B49: 0.6527951389 | C49: 9.55830795 | D49: 9.55830795 | E49: 14.26867377 | F49: 22.82987804 | G49: 32.38818599 | H49: 40.12233507 | I49: 0.5247049907 | J49: 42.40735417 | K49: 0.3715074965 | L49: 1.412367168 | M49: 31.64838549 | N49: 21.80861857 | AV49: 76.86552319 | AW49: 1.817898725 | AX49: 32.56699548
A50: -2.21875 | B50: 0.6861660428 | C50: 9.621124368 | D50: 9.621124368 | E50: 14.2246961 | F50: 22.75951375 | G50: 32.38063812 | H50: 42.01154616 | I50: 0.5458242788 | J50: 43.01853963 | K50: 0.3780268779 | L50: 1.443876906 | M50: 33.08100997 | N50: 22.21151637 | AV50: 77.17475205 | AW50: 1.775825482 | AX50: 32.56605263
A51: -2.10625 | B51: 0.717752972 | C51: 9.686107548 | D51: 9.686107548 | E51: 14.18014486 | F51: 22.68823177 | G51: 32.37433932 | H51: 43.88380948 | I51: 0.5663241047 | J51: 43.61795087 | K51: 0.3844984599 | L51: 1.472890437 | M51: 34.49429011 | N51: 22.61260757 | AV51: 77.48398091 | AW51: 1.733700513 | AX51: 32.56504077
A52: -1.99375 | B52: 0.7475777465 | C52: 9.753182916 | D52: 9.753182916 | E52: 14.13502 | F52: 22.616032 | G52: 32.36921491 | H52: 45.73933234 | I52: 0.5862103266 | J52: 44.20573188 | K52: 0.3909238533 | L52: 1.499551183 | M52: 35.88854013 | N52: 23.01199647 | AV52: 77.79320977 | AW52: 1.691525043 | AX52: 32.56396152
A53: -1.88125 | B53: 0.7756606432 | C53: 9.822278759 | D53: 9.822278759 | E53: 14.08932101 | F53: 22.54291361 | G53: 32.36519237 | H53: 47.57830736 | I53: 0.6054896797 | J53: 44.78201649 | K53: 0.397304601 | L53: 1.523993626 | M53: 37.26408709 | N53: 23.40978385 | AV53: 78.10243862 | AW53: 1.649300303 | AX53: 32.56281653
A54: -1.76875 | B54: 0.8020204715 | C54: 9.893326176 | D54: 9.893326176 | E54: 14.04304694 | F54: 22.4688751 | G54: 32.36220128 | H54: 49.40091323 | I54: 0.6241696719 | J54: 45.34692886 | K54: 0.403642182 | L54: 1.546344014 | M54: 38.6212695 | N54: 23.80606723 | AV54: 78.41166748 | AW54: 1.607027522 | AX54: 32.56160746
A55: -1.65625 | B55: 0.8266746411 | C55: 9.966259016 | D55: 9.966259016 | E55: 13.9961964 | F55: 22.39391425 | G55: 32.36017326 | H55: 51.20731534 | I55: 0.6422584851 | J55: 45.90058388 | K55: 0.409938016 | L55: 1.566720968 | M55: 39.96043594 | N55: 24.20094112 | AV55: 78.72089634 | AW55: 1.564707931 | AX55: 32.560336
A56: -1.54375 | B56: 0.8496392234 | C56: 10.04101383 | D56: 10.04101383 | E56: 13.9487676 | F56: 22.31802816 | G56: 32.35904199 | H56: 52.99766637 | I56: 0.6597648813 | J56: 46.44308762 | K56: 0.4161934673 | L56: 1.585236033 | M56: 41.28194377 | N56: 24.59449731 | AV56: 79.0301252 | AW56: 1.522342762 | AX56: 32.55900386
A57: -1.43125 | B57: 0.8709290073 | C57: 10.1175298 | D57: 10.1175298 | E57: 13.90075831 | F57: 22.2412133 | G57: 32.3587431 | H57: 54.77210682 | I57: 0.6766981158 | J57: 46.9745377 | K57: 0.4224098485 | L57: 1.601994173 | M57: 42.58615788 | N57: 24.98682505 | O57: -1.43125 | P57: 0.8709290073 | AV57: 79.33935406 | AW57: 1.479933251 | AX57: 32.55761277
A58: -1.31875 | B58: 0.8905575492 | C58: 10.1957487 | D58: 10.1957487 | E58: 13.85216589 | F58: 22.16346543 | G58: 32.35921413 | H58: 56.53076547 | I58: 0.6930678554 | J58: 47.49502357 | K58: 0.4285884238 | L58: 1.617094202 | M58: 43.87344953 | N58: 25.37801128 | AV58: 79.64858291 | AW58: 1.437480631 | AX58: 32.55616445
A59: -1.20625 | B59: 0.9085372186 | C59: 10.27561481 | D59: 10.27561481 | E59: 13.80298731 | F59: 22.0847797 | G59: 32.36039451 | H59: 58.27375983 | I59: 0.7088841021 | J59: 48.00462689 | K59: 0.4347304121 | L59: 1.630629195 | M59: 45.14419519 | N59: 25.76814083 | AV59: 79.95781177 | AW59: 1.394986141 | AX59: 32.55466067
A60: -1.09375 | B60: 0.924879238 | C60: 10.35707489 | D60: 10.35707489 | E60: 13.7532191 | F60: 22.00515057 | G60: 32.36222546 | H60: 60.00119651 | I60: 0.7241571238 | J60: 48.50342172 | K60: 0.4408369902 | L60: 1.642686843 | M60: 46.39877556 | N60: 26.1572966 | AV60: 80.26704063 | AW60: 1.352451017 | AX60: 32.55310323
A61: -0.98125 | B61: 0.9395937199 | C61: 10.44007809 | D61: 10.44007809 | E61: 13.70285742 | F61: 21.92457187 | G61: 32.36464996 | H61: 61.71317159 | I61: 0.7388973897 | J61: 48.9914748 | K61: 0.4469092952 | L61: 1.653349791 | M61: 47.6375746 | N61: 26.54555978 | AV61: 80.57626949 | AW61: 1.309876499 | AX61: 32.55149391
A62: -0.86875 | B62: 0.9526896983 | C62: 10.5245759 | D62: 10.5245759 | E62: 13.65189798 | F62: 21.84303676 | G62: 32.36761267 | H62: 63.40977088 | I62: 0.7531155111 | J62: 49.46884576 | K62: 0.4529484274 | L62: 1.66269594 | M62: 48.86097862 | N62: 26.93300994 | AV62: 80.88549834 | AW62: 1.267263826 | AX62: 32.54983454
A63: -0.75625 | B63: 0.9641751574 | C63: 10.61052211 | D63: 10.61052211 | E63: 13.60033611 | F63: 21.76053778 | G63: 32.37105988 | H63: 65.09107025 | I63: 0.7668221884 | J63: 49.93558729 | K63: 0.4589554523 | L63: 1.670798733 | M63: 50.06937549 | N63: 27.31972526 | AV63: 81.1947272 | AW63: 1.22461424 | AX63: 32.54812695
A64: -0.64375 | B64: 0.9740570563 | C64: 10.6978727 | D64: 10.6978727 | E64: 13.54816672 | F64: 21.67706676 | G64: 32.37493945 | H64: 66.75713579 | I64: 0.7800281615 | J64: 50.39174532 | K64: 0.4649314032 | L64: 1.677727416 | M64: 51.26315392 | N64: 27.70578267 | AV64: 81.50395606 | AW64: 1.181928983 | AX64: 32.54637302
A65: -0.53125 | B65: 0.9823413506 | C65: 10.78658585 | D65: 10.78658585 | E65: 13.4953843 | F65: 21.59261488 | G65: 32.37920073 | H65: 68.40802408 | I65: 0.7927441668 | J65: 50.83735916 | K65: 0.4708772833 | L65: 1.683547274 | M65: 52.44270276 | N65: 28.09125797 | AV65: 81.81318492 | AW65: 1.139209299 | AX65: 32.54457462
A66: -0.41875 | B66: 0.9890330102 | C66: 10.87662183 | D66: 10.87662183 | E66: 13.44198291 | F66: 21.50717265 | G66: 32.38379448 | H66: 70.04378235 | I66: 0.8049808969 | J66: 51.27246162 | K66: 0.4767940673 | L66: 1.688319868 | M66: 53.60841047 | N66: 28.47622598 | AV66: 82.12241378 | AW66: 1.096456432 | AX66: 32.54273364
A67: -0.30625 | B67: 0.9941360345 | C67: 10.96794296 | D67: 10.96794296 | E67: 13.38795617 | F67: 21.42072987 | G67: 32.38867284 | H67: 71.66444858 | I67: 0.8167489658 | J67: 51.69707908 | K67: 0.4826827039 | L67: 1.692103237 | M67: 54.76066454 | N67: 28.86076071 | AV67: 82.43164263 | AW67: 1.053671627 | AX67: 32.54085202
A68: -0.19375 | B68: 0.9976534645 | C68: 11.06051358 | D68: 11.06051358 | E68: 13.33329729 | F68: 21.33327566 | G68: 32.39378924 | H68: 73.27005166 | I68: 0.8280588773 | J68: 52.11123162 | K68: 0.4885441171 | L68: 1.6949521 | M68: 55.89985106 | N68: 29.24493546 | AV68: 82.74087149 | AW68: 1.01085613 | AX68: 32.53893169
A69: -0.08125 | B69: 0.9995873917 | C69: 11.15429995 | D69: 11.15429995 | E69: 13.277999 | F69: 21.2447984 | G69: 32.39909835 | H69: 74.86061147 | I69: 0.8389209968 | J69: 52.51493304 | K69: 0.4943792081 | L69: 1.69691804 | M69: 57.02635434 | N69: 29.62882295 | AV69: 83.05010035 | AW69: 0.9680111891 | AX69: 32.53697462
A70: 0.03125 | B70: 0.9999389646 | C70: 11.24927024 | D70: 11.24927024 | E70: 13.22205358 | F70: 21.15528572 | G70: 32.40455596 | H70: 76.43613891 | I70: 0.8493455273 | J70: 52.90819092 | K70: 0.5001888569 | L70: 1.698049678 | M70: 58.14055653 | N70: 30.01249546 | AV70: 83.35932921 | AW70: 0.9251380516 | AX70: 32.53498279
A71: 0.14375 | B71: 0.9987083918 | C71: 11.34539446 | D71: 11.34539446 | E71: 13.16545283 | F71: 21.06472453 | G71: 32.41011899 | H71: 77.99663597 | I71: 0.8593424875 | J71: 53.29100664 | K71: 0.5059739238 | L71: 1.698392836 | M71: 59.24283739 | N71: 30.39602496 | AG71: x | AH71: Ykykl | AV71: 83.66855807 | AW71: 0.8822379665 | AX71: 32.53295819
A72: 0.25625 | B72: =ycf+SQRT(rcyclef^2-(A72-xcf)^2) -> 0.9958949429 | C72: 11.44264442 | D72: 11.44264442 | E72: 13.10818808 | F72: 20.97310093 | G72: 32.41574536 | H72: 79.54209571 | I72: 0.8689216931 | J72: 53.66337537 | K72: =J72/(E72*rcyclef) -> 0.5117352512 | L72: 1.697990692 | M72: 60.33357405 | N72: 30.77948323 | AG72: =-rcyclef -> -8 | AH72: =ycf+SQRT(rcyclef^2-(AG72-xcf)^2) -> -7 | AI72: =ycf-SQRT(rcyclef^2-(AG72-xcf)^2) -> -7 | AV72: 83.97778692 | AW72: 0.8393121834 | AX72: 32.53090286
A73: =A72+(xb-xa)/80 -> 0.36875 | B73: 0.991496946 | C73: =SQRT((A73-xAfco)^2+(yAfco-B73)^2) -> 11.54099369 | D73: =C73/Caerafco -> 11.54099369 | E73: =SQRT((A73-xBfco)^2+(yBfco-B73)^2) -> 13.05025014 | F73: =E73/Cmesofco -> 20.88040023 | G73: =F73+D73 -> 32.42139392 | H73: =(A73-xAfco)*(B73-ycf)-(B73-yAfco)*(A73-xcf) -> 81.07250224 | I73: =H73/(C73*rcyclef) -> 0.8780927407 | J73: =(A73-xcf)*(B73-yBfco)-(B73-ycf)*(A73-xBfco) -> 54.02528609 | K73: 0.5174736643 | L73: 1.696883921 | M73: 61.41314083 | N73: 31.16294195 | O73: =IF(OR(AND(G73<G72,G73<G74),AND(G73>G72,G73>G74)),A73,"") ->  | P73: =IF(O73<>"",B73,"") ->  | AG73: =AG72+(xb-xa)/80 -> -7.8875 | AH73: =ycf+SQRT(rcyclef^2-(AG73-xcf)^2) -> -5.66308424 | AI73: -8.33691576 | AV73: 84.28701578 | AW73: 0.7963619526 | AX73: 32.52881883
A74: 0.48125 | B74: 0.9855117831 | C74: 11.64041755 | D74: 11.64041755 | E74: 12.9916293 | F74: 20.78660688 | G74: 32.42702443 | H74: 82.58783069 | I74: 0.8868649939 | J74: 54.37672152 | K74: 0.5231899735 | L74: =(I74/K74) -> 1.695110837 | M74: =DEGREES(ASIN(I74)) -> 62.48190911 | N74: =DEGREES(ASIN(K74)) -> 31.5464729 | AG74: -7.775 | AH74: =ycf+SQRT(rcyclef^2-(AG74-xcf)^2) -> -5.116021497 | AI74: -8.883978503 | AV74: 84.59624464 | AW74: 0.7533885252 | AX74: 32.52670818
A75: 0.59375 | B75: 0.977935882 | C75: 11.74089294 | D75: 11.74089294 | E75: 12.93231531 | F75: 20.6917045 | G75: 32.43259745 | H75: 84.08804713 | I75: 0.8952475712 | J75: 54.71765807 | K75: 0.5288849748 | L75: 1.692707515 | M75: 63.54024726 | N75: 31.93014798 | AG75: -7.6625 | AH75: -4.700849342 | AI75: -9.299150658 | AV75: 84.9054735 | AW75: 0.710393153 | AX75: 32.52457298
A76: 0.70625 | B76: 0.9687647059 | C76: 11.84239847 | D76: 11.84239847 | E76: 12.87229737 | F76: 20.5956758 | G76: 32.43807427 | H76: 85.57310846 | I76: 0.9032493364 | J76: 55.04806581 | K76: 0.5345594516 | L76: 1.689707915 | M76: 64.58852063 | N76: 32.31403944 | AG76: -7.55 | AH76: -4.354721187 | AI76: -9.645278813 | AV76: 85.21470235 | AW76: 0.6673770883 | AX76: 32.52241535
A77: 0.81875 | B77: 0.9579927392 | C77: 11.94491431 | D77: 11.94491431 | E77: 12.81156409 | F77: 20.49850255 | G77: 32.44341686 | H77: 87.04296227 | I77: 0.9108788895 | J77: 55.36790833 | K77: 0.5402141761 | L77: 1.686143996 | M77: 65.62709148 | N77: 32.69821993 | AG77: -7.4375 | AH77: -4.053206191 | AI77: -9.946793809 | AV77: 85.52393121 | AW77: 0.6243415841 | AX77: 32.52023741
A78: 0.93125 | B78: 0.9456134714 | C78: 12.04842224 | D78: 12.04842224 | E78: 12.75010348 | F78: 20.40016556 | G78: 32.4485878 | H78: 88.49754673 | I78: 0.9181445604 | J78: 55.67714266 | K78: 0.5458499099 | L78: 1.682045822 | M78: 66.65631912 | N78: 33.08276265 | AG78: -7.325 | AH78: -3.783732754 | AI78: -10.21626725 | AV78: 85.83316007 | AW78: 0.581287894 | AX78: 32.51804131
A79: 1.04375 | B79: 0.9316193767 | C79: 12.15290555 | D79: 12.15290555 | E79: 12.68790289 | F79: 20.30064462 | G79: 32.45355017 | H79: 89.93679033 | I79: 0.9250544029 | J79: 55.97571914 | K79: 0.551467406 | L79: 1.677441664 | M79: 67.67655991 | N79: 33.4677415 | AG79: -7.2125 | AH79: -3.538808912 | AI79: -10.46119109 | AV79: 86.14238893 | AW79: 0.538217272 | AX79: 32.51582922
A80: 1.15625 | B80: 0.9160018909 | C80: 12.25834908 | D80: 12.25834908 | E80: 12.62494904 | F80: 20.19991846 | G80: 32.45826754 | H80: 91.36061171 | I80: 0.9316161899 | J80: 56.26358123 | K80: 0.5570674095 | L80: 1.672358092 | M80: 68.68816741 | N80: 33.8532312 | AG80: -7.1 | AH80: -3.313538282 | AI80: -10.68646172 | AV80: 86.45161779 | AW80: 0.4951309726 | AX80: 32.51360333
A81: 1.26875 | B81: 0.8987513847 | C81: 12.36473913 | D81: 12.36473913 | E81: 12.56122793 | F81: 20.09796469 | G81: 32.46270382 | H81: 92.7689194 | I81: 0.9378374102 | J81: 56.54066539 | K81: 0.5626506591 | L81: 1.666820069 | M81: 69.69149255 | N81: 34.23930742 | AG81: -6.9875 | AH81: -3.104509819 | AI81: -10.89549018 | AV81: 86.76084664 | AW81: 0.452030251 | AX81: 32.51136585
A82: 1.38125 | B82: 0.8798571331 | C82: 12.47206351 | D82: 12.47206351 | E82: 12.49672485 | F82: 19.99475977 | G82: 32.46682327 | H82: 94.16161151 | I82: 0.9437252651 | J82: 56.80690083 | K82: 0.568217888 | L82: 1.660851031 | M82: 70.68688377 | N82: 34.62604693 | AG82: -6.875 | AH82: -2.909232957 | AI82: -11.09076704 | AV82: 87.0700755 | AW82: 0.4089163626 | AX82: 32.50911902
A83: 1.49375 | B83: 0.859307281 | C83: 12.58031146 | D83: 12.58031146 | E83: 12.43142432 | F83: 19.89027891 | G83: 32.47059037 | H83: 95.53857542 | I83: 0.9492866662 | J83: 57.0622093 | K83: 0.5737698256 | L83: 1.654472968 | M83: 71.67468728 | N83: 35.01352777 | AG83: -6.7625 | AH83: -2.725822448 | AI83: -11.27417755 | AV83: 87.37930436 | AW83: 0.3657905632 | AX83: 32.50686508
A84: 1.60625 | B84: 0.837088805 | C84: 12.6894737 | D84: 12.6894737 | E84: 12.36531003 | F84: 19.78449605 | G84: 32.47396976 | H84: 96.8996874 | I84: 0.9545282339 | J84: 57.30650486 | K84: 0.5793071981 | L84: 1.647706497 | M84: 72.65524726 | N84: 35.40182938 | AG84: -6.65 | AH84: -2.552809876 | AI84: -11.44719012 | AV84: 87.68853322 | AW84: 0.3226541089 | AX84: 32.50460631
A85: 1.71875 | B85: 0.8131874698 | C85: 12.79954238 | D85: 12.79954238 | E85: 12.29836485 | F85: 19.67738376 | G85: 32.47692614 | H85: 98.24481221 | I85: 0.9594562961 | J85: 57.53969355 | K85: 0.5848307302 | L85: 1.640570932 | M85: 73.6289062 | N85: 35.79103278 | AG85: -6.5375 | AH85: -2.389024642 | AI85: -11.61097536 | AV85: 87.99776207 | AW85: 0.2795082564 | AX85: 32.50234501
A86: 1.83125 | B86: 0.7875877804 | C86: 12.91051109 | D86: 12.91051109 | E86: 12.23057072 | F86: 19.56891315 | G86: 32.47942424 | H86: 99.57380266 | I86: 0.9640768866 | J86: 57.7616731 | K86: 0.5903411463 | L86: 1.633084349 | M86: 74.59600517 | N86: 36.18122072 | AG86: -6.425 | AH86: -2.233515446 | AI86: -11.76648455 | AV86: 88.30699093 | AW86: 0.2363542622 | AX86: 32.50008349
A87: 1.94375 | B87: 0.7602729293 | C87: 13.02237485 | D87: 13.02237485 | E87: 12.16190864 | F87: 19.45905383 | G87: 32.48142868 | H87: 100.8864991 | I87: 0.9683957446 | J87: 57.97233258 | K87: 0.5958391717 | L87: 1.625263646 | M87: 75.55688419 | N87: 36.57247789 | AG87: -6.3125 | AH87: -2.085496592 | AI87: -11.91450341 | AV87: 88.61621979 | AW87: 0.1931933835 | AX87: 32.4978241
A88: 2.05625 | B88: 0.7312247372 | C88: 13.13513013 | D88: 13.13513013 | E88: 12.09235862 | F88: 19.34777379 | G88: 32.48290392 | H88: 102.1827288 | I88: 0.9724183137 | J88: 58.17155202 | K88: 0.6013255339 | L88: 1.6171246 | M88: 76.51188258 | N88: 36.96489112 | AG88: -6.2 | AH88: -1.944310136 | AI88: -12.05568986 | AV88: 88.92544865 | AW88: 0.1500268774 | AX88: 32.49556918
A89: 2.16875 | B89: 0.7004235882 | C89: 13.24877488 | D89: 13.24877488 | E89: 12.02189956 | F89: 19.23503929 | G89: 32.48381417 | H89: 103.4623053 | I89: 0.9761497413 | J89: 58.35920193 | K89: 0.6068009641 | L89: 1.608681922 | M89: 77.46133941 | N89: 37.35854955 | AG89: -6.0875 | AH89: -1.809398518 | AI89: -12.19060148 | AV89: 89.23467751 | AW89: 0.1068560012 | AX89: 32.49332111
A90: 2.28125 | B90: 0.6678483578 | C90: 13.36330848 | D90: 13.36330848 | E90: 11.95050924 | F90: 19.12081478 | G90: 32.48412326 | H90: 104.7250281 | I90: 0.9795948767 | J90: 58.53514291 | K90: 0.6122661986 | L90: 1.599949301 | M90: 78.40559395 | N90: 37.75354488 | O90: 2.28125 | P90: 0.6678483578 | AG90: -5.975 | AH90: -1.680284312 | AI90: -12.31971569 | AV90: 89.54390636 | AW90: 0.06368201259 | AX90: 32.4910823
A91: 2.39375 | B91: 0.6334763337 | C91: 13.47873182 | D91: 13.47873182 | E91: 11.87816423 | F91: 19.00506277 | G91: 32.48379459 | H91: 105.9706814 | I91: 0.9827582709 | J91: 58.69922505 | K91: 0.6177219803 | L91: 1.590939455 | M91: 79.34498613 | N91: 38.14997157 | AG91: -5.8625 | AH91: -1.556554974 | AI91: -12.44344503 | AV91: 89.85313522 | AW91: 0.020506169 | AX91: 32.48885517
A92: 2.50625 | B92: 0.5972831287 | C92: 13.59504732 | D92: 13.59504732 | E92: 11.8048398 | F92: 18.88774368 | G92: 32.482791 | H92: 107.1990335 | I92: 0.9856441741 | J92: 58.8512874 | K92: 0.6231690602 | L92: 1.58166417 | M92: 80.2798571 | N92: 38.54792717 | AG92: -5.75 | AH92: -1.437851135 | AI92: -12.56214887 | AV92: 90.16236408 | AW92: -0.0226702719 | AX92: 32.48664216
A93: 2.61875 | B93: 0.5592425836 | C93: 13.71225892 | D93: 13.71225892 | E93: 11.73050983 | F93: 18.76881573 | G93: 32.48107466 | H93: 108.4098358 | I93: 0.9882565338 | J93: 58.9911573 | K93: 0.6286081992 | L93: 1.572134336 | M93: 81.2105498 | N93: 38.94751248 | AG93: -5.6375 | AH93: -1.323857494 | AI93: -12.67614251 | AV93: 90.47159294 | AW93: -0.06584605245 | AX93: 32.48444572
A94: 2.73125 | B94: 0.5193266612 | C94: 13.83037219 | D94: 13.83037219 | E94: 11.65514673 | F94: 18.64823477 | G94: 32.47860695 | H94: 109.602822 | I94: 0.9905989925 | J94: 59.11864971 | K94: 0.63404017 | L94: 1.562359988 | M94: 82.1374096 | N94: 39.34883197 | AG94: -5.525 | AH94: -1.214295635 | AI94: -12.78570437 | AV94: 90.7808218 | AW94: -0.109019915 | AX94: 32.48226834
A95: 2.84375 | B95: 0.4775053285 | C95: 13.94939429 | D95: 13.94939429 | E95: 11.5787213 | F95: 18.52595409 | G95: 32.47534838 | H95: 110.7777069 | I95: 0.992674884 | J95: 59.23356642 | K95: 0.6394657586 | L95: 1.552350334 | M95: 83.06078497 | N95: 39.75199399 | AG95: -5.4125 | AH95: -1.108918287 | AI95: -12.89108171 | AV95: 91.09005065 | AW95: -0.152190602 | AX95: 32.48011252
A96: 2.95625 | B96: 0.4337464268 | C96: 14.06933411 | D96: 14.06933411 | E96: 11.50120266 | F96: 18.40192426 | G96: 32.47125837 | H96: 111.9341848 | I96: 0.9944872294 | J96: 59.33569517 | K96: 0.6448857666 | L96: 1.542113783 | M96: 83.98102821 | N96: 40.15711119 | AG96: -5.3 | AH96: -1.007504693 | AI96: -12.99249531 | AV96: 91.39927951 | AW96: -0.195356856 | AX96: 32.47798078
A97: 3.06875 | B97: 0.3880155277 | C97: 14.19020229 | D97: 14.19020229 | E97: 11.42255807 | F97: 18.27609292 | G97: 32.4662952 | H97: 113.0719288 | I97: 0.996038732 | J97: 59.42480873 | K97: 0.6503010135 | L97: 1.531657973 | M97: 84.89849628 | N97: 40.56430085 | AG97: -5.1875 | AH97: -0.9098568367 | AI97: -13.09014316 | AV97: 91.70850837 | AW97: -0.2385174196 | AX97: 32.47587566
A98: 3.18125 | B98: 0.3402757739 | C98: 14.31201129 | D98: 14.31201129 | E98: 11.34275282 | F98: 18.14840452 | G98: 32.46041581 | H98: 114.1905886 | I98: 0.9973317717 | J98: 59.50066386 | K98: 0.6557123388 | L98: 1.520989789 | M98: 85.81355168 | N98: 40.97368534 | AG98: -5.075 | AH98: -0.8157963326 | AI98: -13.18420367 | AV98: 92.01773723 | AW98: -0.2816710356 | AX98: 32.47379972
A99: 3.29375 | B99: 0.2904877023 | C99: 14.4347755 | D99: 14.4347755 | E99: 11.26175007 | F99: 18.0188001 | G99: 32.4535756 | H99: 115.2897894 | I99: 0.9983683971 | J99: 59.56300009 | K99: 0.6611206045 | L99: 1.510115386 | M99: 86.7265634 | N99: 41.38539255 | AG99: -4.9625 | AH99: -0.7251618547 | AI99: -13.27483815 | AV99: 92.32696608 | AW99: -0.324816447 | AX99: 32.47175555
A100: 3.40625 | B100: 0.2386090472 | C100: 14.55851133 | D100: 14.55851133 | E100: 11.17951063 | F100: 17.887217 | G100: 32.44572833 | H100: 116.3691297 | I100: 0.9991503172 | J100: 59.61153846 | K100: 0.6665266983 | L100: 1.499040203 | M100: 87.63790799 | N100: 41.79955638 | AG100: -4.85 | AH100: -0.6378069819 | AI100: -13.36219302 | AV100: 92.63619494 | AW100: -0.3679523972 | AX100: 32.46974574
A101: 3.51875 | B101: 0.1845945214 | C101: 14.68323732 | D101: 14.68323732 | E101: 11.09599283 | F101: 17.75358853 | G101: 32.43682585 | H101: 117.4281792 | I101: 0.9996788912 | J101: 59.64598009 | K101: 0.6719315364 | L101: 1.487768972 | M101: 88.54797071 | N101: 42.21631731 | AG101: -4.7375 | AH101: -0.5535983875 | AI101: -13.44640161 | AV101: 92.9454238 | AW101: -0.4110776295 | AX101: 32.46777291
A102: 3.63125 | B102: 0.1283955725 | C102: 14.80897426 | D102: 14.80897426 | E102: 11.01115227 | F102: 17.61784363 | G102: 32.42681789 | H102: 118.4664767 | I102: 0.9999551165 | J102: 59.66600453 | K102: 0.6773360667 | L102: 1.47630573 | M102: 89.45714683 | N102: 42.63582299 | AG102: -4.625 | AH102: -0.4724143054 | AI102: -13.52758569 | AV102: 93.25465266 | AW102: -0.4541908878 | AX102: 32.4658397
A103: 3.74375 | B103: 0.06996010862 | C103: 14.93574538 | D103: 14.93574538 | E103: 10.92494154 | F103: 17.47990647 | G103: 32.41565185 | H103: 119.4835273 | I103: 0.9999796149 | J103: 59.67126797 | K103: 0.6827412728 | L103: 1.464653822 | M103: 89.63415696 | N103: 43.05822894 | AG103: -4.5125 | AH103: -0.3941432236 | AI103: -13.60585678 | AV103: 93.56388152 | AW103: -0.4972909164 | AX103: 32.46394876
A104: 3.85625 | B104: =ycf+SQRT(rcyclef^2-(A104-xcf)^2) -> 0.009232193151 | C104: 15.06357644 | D104: 15.06357644 | E104: 10.83731003 | F104: 17.33969605 | G104: 32.40327249 | H104: 120.4787996 | I104: 0.9997526156 | J104: 59.66140122 | K104: =J104/(E104*rcyclef) -> 0.688148178 | L104: 1.452815902 | M104: 88.72552096 | N104: 43.48369928 | AG104: -4.4 | AH104: -0.3186827646 | AI104: =ycf-SQRT(rcyclef^2-(AG104-xcf)^2) -> -13.68131724 | AV104: 93.87311037 | AW104: -0.5403764598 | AX104: 32.46210277
A105: 3.96875 | B105: -0.05384830014 | C105: 15.19249601 | D105: 15.19249601 | E105: 10.74820354 | F105: 17.19712566 | G105: 32.38962167 | H105: 121.4517224 | I105: 0.999273937 | J105: 59.63600747 | K105: 0.6935578496 | L105: 1.440793926 | M105: 87.81651071 | N105: 43.91240758 | AG105: -4.2875 | AH105: -0.2459387218 | AI105: -13.75406128 | AV105: 94.18233923 | AW105: -0.5834462631 | AX105: 32.46030442
A106: 4.08125 | B106: -0.1193460749 | C106: 15.32253562 | D106: 15.32253562 | E106: 10.65756397 | F106: 17.05210235 | G106: 32.37463797 | H106: 122.401681 | I106: 0.9985429638 | J106: 59.59465966 | K106: 0.6989714045 | L106: 1.428589149 | M106: 86.90667503 | N106: 44.34453779 | AG106: -4.175 | AH106: -0.1758242256 | AI106: -13.82417577 | AV106: 94.49156809 | AW106: -0.6264990715 | AX106: 32.45855641
A107: 4.19375 | B107: -0.1873308507 | C107: 15.45373004 | D107: 15.45373004 | E107: 10.56532894 | F107: 16.9045263 | G107: 32.35825635 | H107: 123.3280132 | I107: 0.9975586219 | J107: 59.53689764 | K107: 0.7043900145 | L107: 1.416202106 | M107: 85.99554379 | N107: 44.78028529 | AG107: -4.0625 | AH107: -0.1082590189 | AI107: -13.89174098 | AV107: 94.80079695 | AW107: -0.6695336312 | AX107: 32.45686148
A108: 4.30625 | B108: -0.257877861 | C108: 15.58611758 | D108: 15.58611758 | E108: 10.47143132 | F108: 16.75429011 | G108: 32.34040769 | H108: 124.2300041 | I108: 0.9963193482 | J108: 59.46222487 | K108: 0.7098149128 | L108: 1.403632595 | M108: 85.08262542 | N108: 45.21985812 | AG108: -3.95 | AH108: -0.04316882482 | AI108: -13.95683118 | AV108: 95.11002581 | AW108: -0.7125486886 | AX108: 32.45522237
A109: 4.41875 | B109: -0.3310684186 | C109: 15.71974037 | D109: 15.71974037 | E109: 10.37579874 | F109: 16.60127798 | G109: 32.32101835 | H109: 125.1068813 | I109: 0.9948230563 | J109: 59.37010469 | K109: 0.7152474014 | L109: 1.390879651 | M109: 84.16740409 | N109: 45.66347827 | AG109: -3.8375 | AH109: 0.01951520762 | AI109: -14.01951521 | AV109: 95.41925466 | AW109: -0.7555429907 | AX109: 32.45364184
A110: 4.53125 | B110: -0.4069905629 | C110: 15.85464478 | D110: 15.85464478 | E110: 10.27835301 | F110: 16.44536482 | G110: 32.3000096 | H110: 125.9578084 | I110: 0.9930670958 | J110: 59.25995603 | K110: 0.7206888591 | L110: 1.377941511 | M110: 83.2493365 | N110: 46.11138325 | AG110: -3.725 | AH110: 0.07985699008 | AI110: -14.07985699 | AV110: 95.72848352 | AW110: -0.7985152852 | AX110: 32.45212267
A111: 4.64375 | B111: -0.4857398012 | C111: 15.99088185 | D111: 15.99088185 | E111: 10.17900945 | F111: 16.28641512 | G111: 32.27729697 | H111: 126.7818781 | I111: 0.9910482056 | J111: 59.13114856 | K111: 0.7261407514 | L111: 1.364815573 | M111: 82.32784819 | N111: 46.5638278 | AG111: -3.6125 | AH111: 0.1379159248 | AI111: -14.13791592 | AV111: 96.03771238 | AW111: -0.8414643203 | AX111: 32.45066764
A112: 4.75625 | B112: -0.5674199626 | C112: 16.12850777 | D112: 16.12850777 | E112: 10.07767613 | F112: 16.12428181 | G112: 32.25278959 | H112: 127.5781041 | I112: 0.9887624595 | J112: 58.982997 | K112: 0.7316046405 | L112: 1.351498343 | M112: 81.40232933 | N112: 47.02108594 | AG112: -3.5 | AH112: 0.193747285 | AI112: -14.19374728 | AV112: 96.34694124 | AW112: -0.8843888452 | AX112: 32.44927956
A113: 4.86875 | B113: -0.6521441858 | C113: 16.26758449 | D113: 16.26758449 | E113: 9.974253 | F113: 15.9588048 | G113: 32.22638929 | H113: 128.3454115 | I113: 0.9862052015 | J113: 58.81475462 | K113: 0.7370821983 | L113: 1.337985375 | M113: 80.47212988 | N113: 47.48345321 | AG113: -3.3875 | AH113: 0.2474025519 | AI113: -14.24740255 | AV113: 96.65617009 | AW113: -0.9272876093 | AX113: 32.44796127
A114: 4.98125 | B114: -0.7400360674 | C114: 16.40818037 | D114: 16.40818037 | E114: 9.868630824 | F114: 15.78980932 | G114: 32.19798969 | H114: 129.0826261 | I114: 0.983370971 | J114: 58.62560571 | K114: 0.7425752208 | L114: 1.32427119 | M114: 79.53655385 | N114: 47.95124938 | AG114: -3.275 | AH114: 0.2989297161 | AI114: -14.29892972 | AV114: 96.96539895 | AW114: -0.9701593633 | AX114: 32.44671559
A115: 5.09375 | B115: -0.8312310031 | C115: 16.55037104 | D115: 16.55037104 | E115: 9.760690013 | F115: 15.61710402 | G115: 32.16747506 | H115: 129.7884617 | I115: 0.9802534141 | J115: 58.41465663 | K115: 0.7480856445 | L115: 1.310349184 | M115: 78.59485282 | N115: 48.42482151 | AG115: -3.1625 | AH115: 0.3483735445 | AI115: -14.34837354 | AV115: 97.27462781 | AW115: -1.013002858 | AX115: 32.44554537
A116: 5.20625 | B116: -0.925877764 | C116: 16.69424028 | D116: 16.69424028 | E116: 9.650299194 | F116: 15.44047871 | G116: 32.13471899 | H116: 130.461505 | I116: 0.9768451784 | J116: 58.18092551 | K116: 0.7536155659 | L116: 1.29621152 | M116: 77.64621807 | N116: 48.90454757 | AG116: -3.05 | AH116: 0.3957758214 | AI116: -14.39577582 | AV116: 97.58385667 | AW116: -1.055816846 | AX116: 32.44445348
A117: 5.31875 | B117: -1.02414036 | C117: 16.83988118 | D117: 16.83988118 | E117: 9.537313537 | F117: 15.25970166 | G117: 32.09958284 | H117: 131.1001978 | I117: 0.9731377886 | J117: 57.92332987 | K117: 0.7591672651 | L117: 1.281848985 | M117: 76.68977151 | N117: 49.39084072 | AG117: -2.9375 | AH117: 0.4411755624 | AI117: -14.44117556 | AV117: 97.89308553 | AW117: -1.09860008 | AX117: 32.4434428
A118: 5.43125 | B118: -1.126200256 | C118: 16.98739745 | D118: 16.98739745 | E118: 9.421572757 | F118: 15.07451641 | G118: 32.06191386 | H118: 131.7028163 | I118: 0.9691214966 | J118: 57.64067206 | K118: 0.7647432327 | L118: 1.26725083 | M118: 75.72455474 | N118: 49.88415427 | AG118: -2.825 | AH118: 0.4846092082 | AI118: -14.48460921 | AV118: 98.20231438 | AW118: -1.141351314 | AX118: 32.44251621
AG119: -2.7125 | AH119: 0.5261107984 | AI119: -14.5261108 | AV119: 98.51154324 | AW119: -1.184069302 | AX119: 32.44167662
AG120: -2.6 | AH120: 0.5657121278 | AI120: -14.56571213 | AV120: 98.8207721 | AW120: -1.2267528 | AX120: 32.44092693
AG121: -2.4875 | AH121: 0.6034428879 | AI121: -14.60344289 | AV121: 99.13000096 | AW121: -1.269400566 | AX121: 32.44027008
AG122: -2.375 | AH122: 0.6393307953 | AI122: -14.6393308 | AV122: 99.43922982 | AW122: -1.312011356 | AX122: 32.43970899
AG123: -2.2625 | AH123: 0.6734017065 | AI123: -14.67340171 | AV123: 99.74845867 | AW123: -1.354583929 | AX123: 32.43924661
AG124: -2.15 | AH124: 0.7056797234 | AI124: -14.70567972 | AV124: 100.0576875 | AW124: -1.397117046 | AX124: 32.43888588
AG125: -2.0375 | AH125: 0.7361872877 | AI125: -14.73618729 | AV125: 100.3669164 | AW125: -1.439609467 | AX125: 32.43862977
AG126: -1.925 | AH126: 0.764945267 | AI126: -14.76494527 | AV126: 100.6761452 | AW126: -1.482059955 | AX126: 32.43848123
AG127: -1.8125 | AH127: 0.7919730332 | AI127: -14.79197303 | AV127: 100.9853741 | AW127: -1.524467273 | AX127: 32.43844325
AG128: -1.7 | AH128: 0.8172885325 | AI128: -14.81728853 | AV128: 101.294603 | AW128: -1.566830187 | AX128: 32.43851879
AG129: -1.5875 | AH129: 0.8409083498 | AI129: -14.84090835 | AV129: 101.6038318 | AW129: -1.609147461 | AX129: 32.43871083
AG130: -1.475 | AH130: 0.8628477666 | AI130: -14.86284777 | AV130: 101.9130607 | AW130: -1.651417864 | AX130: 32.43902237
AG131: -1.3625 | AH131: 0.8831208129 | AI131: -14.88312081 | AV131: 102.2222895 | AW131: -1.693640164 | AX131: 32.43945638
AG132: -1.25 | AH132: 0.9017403146 | AI132: -14.90174031 | AV132: 102.5315184 | AW132: -1.735813131 | AX132: 32.44001586
AG133: -1.1375 | AH133: 0.918717936 | AI133: -14.91871794 | AV133: 102.8407473 | AW133: -1.777935537 | AX133: 32.4407038
AG134: -1.025 | AH134: 0.934064217 | AI134: -14.93406422 | AV134: 103.1499761 | AW134: -1.820006155 | AX134: 32.44152319
AG135: -0.9125 | AH135: 0.9477886075 | AI135: -14.94778861 | AV135: 103.459205 | AW135: -1.862023759 | AX135: 32.44247701
AG136: -0.8 | AH136: 0.9598994969 | AI136: =ycf-SQRT(rcyclef^2-(AG136-xcf)^2) -> -14.9598995 | AV136: 103.7684338 | AW136: -1.903987127 | AX136: 32.44356826
AG137: =AG136+(xb-xa)/80 -> -0.6875 | AH137: 0.9704042401 | AI137: -14.97040424 | AV137: 104.0776627 | AW137: -1.945895034 | AX137: 32.44479992
AG138: -0.575 | AH138: =ycf+SQRT(rcyclef^2-(AG138-xcf)^2) -> 0.9793091806 | AI138: -14.97930918 | AV138: 104.3868915 | AW138: -1.987746261 | AX138: 32.44617497
AG139: -0.4625 | AH139: 0.9866196698 | AI139: -14.98661967 | AV139: 104.6961204 | AW139: -2.029539588 | AX139: 32.44769639
AG140: -0.35 | AH140: 0.9923400829 | AI140: -14.99234008 | AV140: 105.0053493 | AW140: -2.071273799 | AX140: 32.44936713
AG141: -0.2375 | AH141: 0.9964738323 | AI141: -14.99647383 | AV141: 105.3145781 | AW141: -2.112947677 | AX141: 32.45119018
AG142: -0.125 | AH142: 0.9990233779 | AI142: -14.99902338 | AV142: 105.623807 | AW142: -2.154560009 | AX142: 32.45316847
AG143: -0.0125 | AH143: 0.9999902344 | AI143: -14.99999023 | AV143: 105.9330358 | AW143: -2.196109582 | AX143: 32.45530495
AG144: 0.1 | AH144: 0.9993749756 | AI144: -14.99937498 | AV144: 106.2422647 | AW144: -2.237595187 | AX144: 32.45760256
AG145: 0.2125 | AH145: 0.9971772364 | AI145: -14.99717724 | AV145: 106.5514935 | AW145: -2.279015614 | AX145: 32.46006421
AG146: 0.325 | AH146: 0.9933957115 | AI146: -14.99339571 | AV146: 106.8607224 | AW146: -2.320369658 | AX146: 32.46269282
AG147: 0.4375 | AH147: 0.9880281516 | AI147: -14.98802815 | AV147: 107.1699513 | AW147: -2.361656114 | AX147: 32.46549126
AG148: 0.55 | AH148: 0.9810713567 | AI148: -14.98107136 | AV148: 107.4791801 | AW148: -2.402873779 | AX148: 32.46846243
AG149: 0.6625 | AH149: 0.9725211665 | AI149: -14.97252117 | AV149: 107.788409 | AW149: -2.444021452 | AX149: 32.47160917
AG150: 0.775 | AH150: 0.962372448 | AI150: -14.96237245 | AV150: 108.0976378 | AW150: -2.485097935 | AX150: 32.47493433
AG151: 0.8875 | AH151: 0.9506190797 | AI151: -14.95061908 | AV151: 108.4068667 | AW151: -2.526102032 | AX151: 32.47844074
AG152: 1 | AH152: 0.9372539332 | AI152: -14.93725393 | AV152: 108.7160956 | AW152: -2.567032549 | AX152: 32.48213118
AG153: 1.1125 | AH153: 0.9222688512 | AI153: -14.92226885 | AV153: 109.0253244 | AW153: -2.607888292 | AX153: 32.48600844
AG154: 1.225 | AH154: 0.9056546219 | AI154: -14.90565462 | AV154: 109.3345533 | AW154: -2.648668072 | AX154: 32.49007526
AG155: 1.3375 | AH155: 0.8874009502 | AI155: -14.88740095 | AV155: 109.6437821 | AW155: -2.689370701 | AX155: 32.49433438
AG156: 1.45 | AH156: 0.8674964252 | AI156: -14.86749643 | AV156: 109.953011 | AW156: -2.729994994 | AX156: 32.4987885
AG157: 1.5625 | AH157: 0.8459284823 | AI157: -14.84592848 | AV157: 110.2622398 | AW157: -2.770539766 | AX157: 32.50344029
AG158: 1.675 | AH158: 0.8226833631 | AI158: -14.82268336 | AV158: 110.5714687 | AW158: -2.811003838 | AX158: 32.50829239
AG159: 1.7875 | AH159: 0.7977460686 | AI159: -14.79774607 | AV159: 110.8806976 | AW159: -2.85138603 | AX159: 32.51334741
AG160: 1.9 | AH160: 0.7711003082 | AI160: -14.77110031 | AV160: 111.1899264 | AW160: -2.891685167 | AX160: 32.51860793
AG161: 2.0125 | AH161: 0.7427284435 | AI161: -14.74272844 | AV161: 111.4991553 | AW161: -2.931900074 | AX161: 32.5240765
AG162: 2.125 | AH162: 0.7126114255 | AI162: -14.71261143 | AV162: 111.8083841 | AW162: -2.97202958 | AX162: 32.52975563
AG163: 2.2375 | AH163: 0.6807287252 | AI163: -14.68072873 | AV163: 112.117613 | AW163: -3.012072516 | AX163: 32.53564778
AG164: 2.35 | AH164: 0.6470582579 | AI164: -14.64705826 | AV164: 112.4268418 | AW164: -3.052027716 | AX164: 32.5417554
AG165: 2.4625 | AH165: 0.6115762986 | AI165: -14.6115763 | AV165: 112.7360707 | AW165: -3.091894016 | AX165: 32.54808088
AG166: 2.575 | AH166: 0.5742573893 | AI166: -14.57425739 | AV166: 113.0452996 | AW166: -3.131670254 | AX166: 32.55462657
AG167: 2.6875 | AH167: 0.5350742365 | AI167: -14.53507424 | AV167: 113.3545284 | AW167: -3.171355273 | AX167: 32.56139479
AG168: 2.8 | AH168: 0.4939975981 | AI168: =ycf-SQRT(rcyclef^2-(AG168-xcf)^2) -> -14.4939976 | AV168: 113.6637573 | AW168: -3.210947916 | AX168: 32.56838779
AG169: 2.9125 | AH169: 0.4509961582 | AI169: -14.45099616 | AV169: 113.9729861 | AW169: -3.250447029 | AX169: 32.57560781
AG170: 3.025 | AH170: 0.4060363893 | AI170: -14.40603639 | AV170: 114.282215 | AW170: -3.289851463 | AX170: 32.583057
AG171: 3.1375 | AH171: 0.3590823986 | AI171: -14.3590824 | AV171: 114.5914438 | AW171: -3.329160069 | AX171: 32.59073751
AG172: 3.25 | AH172: 0.3100957586 | AI172: -14.31009576 | AV172: 114.9006727 | AW172: -3.368371703 | AX172: 32.59865141
AG173: 3.3625 | AH173: 0.2590353181 | AI173: -14.25903532 | AV173: 115.2099016 | AW173: -3.407485223 | AX173: 32.60680071
AG174: 3.475 | AH174: 0.2058569928 | AI174: -14.20585699 | AV174: 115.5191304 | AW174: -3.446499488 | AX174: 32.6151874
AG175: 3.5875 | AH175: 0.1505135305 | AI175: -14.15051353 | AV175: 115.8283593 | AW175: -3.485413363 | AX175: 32.62381339
AG176: 3.7 | AH176: 0.09295425052 | AI176: -14.09295425 | AV176: 116.1375881 | AW176: -3.524225714 | AX176: 32.63268055
AG177: 3.8125 | AH177: 0.03312475007 | AI177: -14.03312475 | AV177: 116.446817 | AW177: -3.562935411 | AX177: 32.64179067
AG178: 3.925 | AH178: -0.02903342427 | AI178: -13.97096658 | AV178: 116.7560459 | AW178: -3.601541326 | AX178: 32.65114552
AG179: 4.0375 | AH179: -0.09358314681 | AI179: -13.90641685 | AV179: 117.0652747 | AW179: -3.640042334 | AX179: 32.66074678
AG180: 4.15 | AH180: -0.1605921309 | AI180: -13.83940787 | AV180: 117.3745036 | AW180: -3.678437315 | AX180: 32.67059607
AG181: 4.2625 | AH181: -0.2301334023 | AI181: -13.7698666 | AV181: 117.6837324 | AW181: -3.716725149 | AX181: 32.68069497
AG182: 4.375 | AH182: -0.3022858377 | AI182: -13.69771416 | AV182: 117.9929613 | AW182: -3.754904722 | AX182: 32.69104499
AG183: 4.4875 | AH183: -0.3771347779 | AI183: -13.62286522 | AV183: 118.3021901 | AW183: -3.792974921 | AX183: 32.70164756
AG184: 4.6 | AH184: -0.4547727312 | AI184: -13.54522727 | AV184: 118.611419 | AW184: -3.830934638 | AX184: 32.71250406
AG185: 4.7125 | AH185: -0.535300181 | AI185: -13.46469982 | AV185: 118.9206479 | AW185: -3.868782766 | AX185: 32.72361581
AG186: 4.825 | AH186: -0.6188265186 | AI186: -13.38117348 | AV186: 119.2298767 | AW186: -3.906518204 | AX186: 32.73498404
AG187: 4.9375 | AH187: -0.7054711257 | AI187: -13.29452887 | AV187: 119.5391056 | AW187: -3.944139852 | AX187: 32.74660994
AG188: 5.05 | AH188: -0.795364636 | AI188: -13.20463536 | AV188: 119.8483344 | AW188: -3.981646614 | AX188: 32.75849461
AG189: 5.1625 | AH189: -0.888650415 | AI189: -13.11134958 | AV189: 120.1575633 | AW189: -4.019037397 | AX189: 32.77063909
AG190: 5.275 | AH190: -0.9854863039 | AI190: -13.0145137 | AV190: 120.4667921 | AW190: -4.056311114 | AX190: 32.78304434
AG191: 5.3875 | AH191: -1.08604669 | AI191: -12.91395331 | AV191: 120.776021 | AW191: -4.093466677 | AX191: 32.79571127
AG192: 5.5 | AH192: -1.190524981 | AI192: -12.80947502 | AV192: 121.0852499 | AW192: -4.130503006 | AX192: 32.8086407
AG193: 5.6125 | AH193: -1.299136579 | AI193: -12.70086342 | AV193: 121.3944787 | AW193: -4.16741902 | AX193: 32.82183338
AG194: 5.725 | AH194: -1.412122496 | AI194: -12.5878775 | AV194: 121.7037076 | AW194: -4.204213644 | AX194: 32.83528998
AG195: 5.8375 | AH195: -1.529753776 | AI195: -12.47024622 | AV195: 122.0129364 | AW195: -4.240885808 | AX195: 32.84901112
AG196: 5.95 | AH196: -1.652336959 | AI196: -12.34766304 | AV196: 122.3221653 | AW196: -4.277434441 | AX196: 32.86299732
AG197: 6.0625 | AH197: -1.78022091 | AI197: -12.21977909 | AV197: 122.6313942 | AW197: -4.313858481 | AX197: 32.87724904
AG198: 6.175 | AH198: -1.91380545 | AI198: -12.08619455 | AV198: 122.940623 | AW198: -4.350156867 | AX198: 32.89176665
AG199: 6.2875 | AH199: -2.053552411 | AI199: -11.94644759 | AV199: 123.2498519 | AW199: -4.386328539 | AX199: 32.90655047
AG200: 6.4 | AH200: =ycf+SQRT(rcyclef^2-(AG200-xcf)^2) -> -2.2 | AI200: =ycf-SQRT(rcyclef^2-(AG200-xcf)^2) -> -11.8 | AV200: 123.5590807 | AW200: -4.422372446 | AX200: 32.92160071
... 202 more rows

Sheet ELLIPSE
G1: ALPHA | H1: 35 | J1: NELLIPSE | K1: 2.2 | N1: xsource | O1: =-2.5*ALPHA+2.5*ALPHA*X1/1000 -> -57.6625 | Q1: xin | R1: =-ALPHA+2*ALPHA*X3/1000 -> 22.26 | X1: 341 | AC1: extrema at
G2: BETA | H2: 32 | N2: ysource | O2: =3*BETA*X2/1000 -> 56.544 | Q2: yin | R2: =-BETA+2*BETA*X4/1000 -> -19.84 | X2: 589
G3: CE | H3: =SQRT(ALPHA^2-BETA^2) -> 14.17744688 | N3: XON ELLIPSE | O3: =Z3 -> -18.69 | Q3: YON ELLIPSE | R3: =BETA*SQRT(1-(O3/ALPHA)^2) -> 27.05550325 | X3: 818 | Z3: =-ALPHA+2*ALPHA*AA3/1000 -> -18.69 | AA3: 233
X4: 190
X5: 402
P6: THETA | Q6: =MIN(GONIA1,GONIA2)+ABS(GONIA2-GONIA1)/1000*X5 -> 118.4258971 | S6: XON | T6: -15.81315577 | V6: Se Youn Mak condition: the following quantity should be <0 for MAXIMUM | AX6: 65.57120671 | AY6: 186.4274127
N7: TANGENTS | P7: (ANGLE WITH X AXIS) | S7: YON | T7: 28.54774394 | AX7: 65.89990504 | AY7: 186.4515089
N8: =xsource -> -57.6625 | O8: =ysource -> 56.544 | P8: =xsource -> -57.6625 | Q8: =ysource -> 56.544 | V8: x | W8: y | X8: R | Y8: MAK | AX8: 66.22860336 | AY8: 186.4749437
N9: 70 | O9: -291.4084861 | P9: 70 | Q9: 8.071056206 | V9: =X16 -> 5.369537716 | W9: 31.62117733 | X9: =aktina_KaMPylothtas(V9,W9,ALPHA,BETA,CE) -> 38.05970841 | Y9: =X9^2*(COS(Z16)^2/AB16+COS(AA16)^2*NELLIPSE/AC16)+X9*(COS(Z16)-NELLIPSE*COS(AA16)) -> -17.71976617 | AX9: 66.55730168 | AY9: 186.4977229
N10: -33.18280321 | O10: -10.17701326 | P10: 13.42368287 | Q10: 29.55285893 | V10: -16.57716247 | W10: 28.18311014 | X10: =aktina_KaMPylothtas(V10,W10,ALPHA,BETA,CE) -> 36.18722604 | Y10: =X10^2*(COS(Z17)^2/AB17+COS(AA17)^2*NELLIPSE/AC17)+X10*(COS(Z17)-NELLIPSE*COS(AA17)) -> 18.29794404 | AX10: 66.88600001 | AY10: 186.5198521
V11: -34.07274207 | W11: -7.3170422 | X11: =aktina_KaMPylothtas(V11,W11,ALPHA,BETA,CE) -> 29.70868822 | Y11: =X11^2*(COS(Z18)^2/AB18+COS(AA18)^2*NELLIPSE/AC18)+X11*(COS(Z18)-NELLIPSE*COS(AA18)) -> -28.35601716 | AX11: 67.21469833 | AY11: 186.5413372
AX12: 67.54339665 | AY12: 186.5621839
N13: LIMITING ANGLES | AX13: 67.87209498 | AY13: 186.5823978
N14: =IF(ATAN2(N10,O10)>0,ATAN2(N10,O10),2*PI()+ATAN2(N10,O10)) -> 3.439180646 | O14: =DEGREES(N14) -> 197.050536 | P14: =ATAN2(P10,Q10) -> 1.144433452 | Q14: =DEGREES(P14) -> 65.57120671 | AX14: 68.2007933 | AY14: 186.6019846
O15: GONIA1 | Q15: GONIA2 | X15: EXTREMA POINTS | Z15: inc ANGLE | AA15: ref ANGLE | AB15: INC RAY | AC15: REF RAY | AD15: sin(inc)/sin(ref) | AX15: 68.52949162 | AY15: 186.62095
N16: VERTICAL AT INCIDENCE POINT | X16: 5.369537716 | Y16: 31.62117733 | Z16: -1.335266248 | AA16: -0.4578223965 | AB16: 67.78041656 | AC16: 54.16216842 | AD16: =SIN(Z16)/SIN(AA16) -> 2.2 | AX16: 68.85818995 | AY16: 186.6392997
N17: DYDX | O17: =-XON*(BETA/ALPHA)^2/YON -> 0.4630315931 | V17: minimum time | X17: -16.57716247 | Y17: 28.18311014 | Z17: -0.5096435365 | AA17: -0.2236162983 | AB17: 49.92339165 | AC17: 61.76199718 | AD17: =SIN(Z17)/SIN(AA17) -> 2.2 | AX17: 69.18688827 | AY17: 186.6570394
N18: -1/DYDX | O18: =-1/O17 -> -2.159679847 | V18: EXTREMUM RAY | X18: -34.07274207 | Y18: -7.3170422 | Z18: -1.468413746 | AA18: -0.4691914033 | AB18: 68.07869997 | AC18: 57.70790502 | AD18: 2.2 | AX18: 69.51558659 | AY18: 186.6741746
N19: XA,YA | O19: =XON-10/SQRT(1+O18^2) -> -20.0149043 | P19: =YON-10*O18/SQRT(1+O18^2) -> 37.62217556 | V19: =xsource -> -57.6625 | W19: =ysource -> 56.544 | AX19: 69.84428492 | AY19: 186.6907111
N20: XB,YB | O20: =XON+10/SQRT(1+O18^2) -> -11.61140724 | P20: =YON+10*O18/SQRT(1+O18^2) -> 19.47331232 | R20: MAX t | S20: 195.036091 | V20: -16.74578775 | W20: 28.09965471 | X20: ALL EXTREMA | AX20: 70.17298324 | AY20: 186.7066544
R21: MIN t | S21: 185.7997855 | T21: 120.792525 | U21: ANGLE | V21: =xin -> 22.26 | W21: =yin -> -19.84 | X21: =DEGREES(Y21) -> 80.69132958 | Y21: 1.408329379 | Z21: 186.9371871 | AX21: 70.50168156 | AY21: 186.7220102
N22: INCIDENCE ANGLE | P22: REFRACTION ANGLE | R22: TIME FROM SOURCE TO END POINT | V22: ANGLE MAX | W22: ANGLE MIN | X22: =DEGREES(Y22) -> 120.792525 | Y22: 2.108227273 | Z22: 185.7997855 | AX22: 70.83037988 | AY22: 186.7367842
N23: EXTERIOR PRODUCT | P23: EXTERIOR PRODUCT | R23: =SQRT((xsource-XON)^2+(ysource-YON)^2)+NELLIPSE*SQRT((xin-XON)^2+(yin-YON)^2) -> 185.8056752 | S23: =DEGREES(T23) -> 118.9829293 | T23: =IF(ATAN2(XON,YON)>0,ATAN2(XON,YON),2*PI()+ATAN2(XON,YON)) -> 2.076643869 | V23: 192.4487595 | W23: 120.792525 | X23: 192.4487595 | Y23: 3.358864494 | Z23: 195.036091 | AX23: 71.15907821 | AY23: 186.7509818
N24: =(O19-XON)*(ysource-YON)-(P19-YON)*(xsource-XON) -> 262.1257849 | P24: =(O19-XON)*(YON-yin)-(P19-YON)*(XON-xin) -> 142.1791167 | R24: CALCULATED INDEX OF REFRACTION | AX24: 71.48777653 | AY24: 186.7646088
N25: =N24/(10*SQRT((xsource-XON)^2+(ysource-YON)^2)) -> 0.520603677 | P25: =P24/(10*SQRT((xin-XON)^2+(yin-YON)^2)) -> 0.2309204613 | R25: =N25/P25 -> 2.254471839 | AX25: 71.81647485 | AY25: 186.7776707
N26: =ASIN(N25) -> 0.547557847 | P26: =ASIN(P25) -> 0.2330236068 | AX26: 72.14517318 | AY26: 186.7901731
AX27: 72.4738715 | AY27: 186.8021216
AX28: 72.80256982 | AY28: 186.8135218
AX29: 73.13126815 | AY29: 186.8243792
AX30: 73.45996647 | AY30: 186.8346995
AX31: 73.78866479 | AY31: 186.8444881
V32: ` | AX32: 74.11736312 | AY32: 186.8537507
AX33: 74.44606144 | AY33: 186.8624929
AX34: 74.77475976 | AY34: 186.87072
AX35: 75.10345809 | AY35: 186.8784379
AX36: 75.43215641 | AY36: 186.8856519
AX37: 75.76085473 | AY37: 186.8923676
AX38: 76.08955306 | AY38: 186.8985907
AX39: 76.41825138 | AY39: 186.9043266
AX40: 76.7469497 | AY40: 186.909581
AX41: 77.07564803 | AY41: 186.9143593
AX42: 77.40434635 | AY42: 186.9186671
AX43: 77.73304467 | AY43: 186.9225101
AX44: 78.061743 | AY44: 186.9258938
AX45: 78.39044132 | AY45: 186.9288237
AX46: 78.71913964 | AY46: 186.9313054
AX47: 79.04783796 | AY47: 186.9333445
AX48: 79.37653629 | AY48: 186.9349467
AX49: 79.70523461 | AY49: 186.9361174
AX50: 80.03393293 | AY50: 186.9368623
AX51: 80.36263126 | AY51: 186.9371871
AX52: 80.69132958 | AY52: 186.9370973
AX53: 81.0200279 | AY53: 186.9365985
AX54: 81.34872623 | AY54: 186.9356964
AX55: 81.67742455 | AY55: 186.9343967
AX56: 82.00612287 | AY56: 186.932705
AX57: 82.3348212 | AY57: 186.930627
AX58: 82.66351952 | AY58: 186.9281683
A59: focuses | AX59: 82.99221784 | AY59: 186.9253347
A60: =-CE -> -14.17744688 | B60: 0 | AX60: 83.32091617 | AY60: 186.9221319
A61: =CE -> 14.17744688 | B61: 0 | AX61: 83.64961449 | AY61: 186.9185656
AX62: 83.97831281 | AY62: 186.9146416
A63: =-ALPHA -> -35 | B63: =BETA*SQRT(1-(A63/ALPHA)^2) -> 0 | C63: =-B63 -> 0 | AX63: 84.30701114 | AY63: 186.9103655
A64: =A63+ALPHA/200 -> -34.825 | B64: 3.195997497 | C64: =-B64 -> -3.195997497 | AX64: 84.63570946 | AY64: 186.9057432
A65: -34.65 | B65: 4.514155513 | C65: =-B65 -> -4.514155513 | AX65: 84.96440778 | AY65: 186.9007806
A66: -34.475 | B66: 5.521738857 | C66: -5.521738857 | AX66: 85.29310611 | AY66: 186.8954833
A67: -34.3 | B67: 6.367919597 | C67: -6.367919597 | AX67: 85.62180443 | AY67: 186.8898572
A68: -34.125 | B68: 7.110555534 | C68: -7.110555534 | AX68: 85.95050275 | AY68: 186.8839081
A69: -33.95 | B69: 7.7793573 | C69: -7.7793573 | AX69: 86.27920108 | AY69: 186.8776421
A70: -33.775 | B70: 8.391996187 | C70: -8.391996187 | AX70: 86.6078994 | AY70: 186.8710648
A71: -33.6 | B71: 8.96 | C71: -8.96 | AX71: 86.93659772 | AY71: 186.8641823
A72: -33.425 | B72: 9.491385568 | C72: -9.491385568 | AX72: 87.26529605 | AY72: 186.8570005
A73: -33.25 | B73: 9.991996797 | C73: -9.991996797 | AX73: 87.59399437 | AY73: 186.8495253
A74: -33.075 | B74: 10.46625052 | C74: -10.46625052 | AX74: 87.92269269 | AY74: 186.8417627
A75: -32.9 | B75: 10.91758215 | C75: -10.91758215 | AX75: 88.25139101 | AY75: 186.8337188
A76: -32.725 | B76: 11.3487268 | C76: -11.3487268 | AX76: 88.58008934 | AY76: 186.8253995
A77: -32.55 | B77: 11.76190461 | C77: -11.76190461 | AX77: 88.90878766 | AY77: 186.816811
A78: -32.375 | B78: 12.15894732 | C78: -12.15894732 | AX78: 89.23748598 | AY78: 186.8079592
A79: -32.2 | B79: 12.54138748 | C79: -12.54138748 | AX79: 89.56618431 | AY79: 186.7988504
A80: -32.025 | B80: 12.91052284 | C80: -12.91052284 | AX80: 89.89488263 | AY80: 186.7894907
A81: -31.85 | B81: 13.26746396 | C81: -13.26746396 | AX81: 90.22358095 | AY81: 186.7798861
A82: -31.675 | B82: 13.61317009 | C82: -13.61317009 | AX82: 90.55227928 | AY82: 186.7700431
A83: -31.5 | B83: 13.94847662 | C83: -13.94847662 | AX83: 90.8809776 | AY83: 186.7599676
A84: -31.325 | B84: 14.27411644 | C84: -14.27411644 | AX84: 91.20967592 | AY84: 186.7496662
A85: -31.15 | B85: 14.59073679 | C85: -14.59073679 | AX85: 91.53837425 | AY85: 186.7391449
A86: -30.975 | B86: 14.89891271 | C86: -14.89891271 | AX86: 91.86707257 | AY86: 186.7284102
A87: -30.8 | B87: 15.19915787 | C87: -15.19915787 | AX87: 92.19577089 | AY87: 186.7174684
A88: -30.625 | B88: 15.49193338 | C88: -15.49193338 | AX88: 92.52446922 | AY88: 186.706326
A89: -30.45 | B89: 15.77765509 | C89: -15.77765509 | AX89: 92.85316754 | AY89: 186.6949892
A90: -30.275 | B90: 16.05669954 | C90: -16.05669954 | AX90: 93.18186586 | AY90: 186.6834647
A91: -30.1 | B91: 16.32940905 | C91: -16.32940905 | AX91: 93.51056419 | AY91: 186.6717589
A92: -29.925 | B92: 16.59609593 | C92: -16.59609593 | AX92: 93.83926251 | AY92: 186.6598783
A93: -29.75 | B93: 16.857046 | C93: -16.857046 | AX93: 94.16796083 | AY93: 186.6478295
A94: -29.575 | B94: 17.11252173 | C94: -17.11252173 | AX94: 94.49665916 | AY94: 186.6356191
A95: -29.4 | B95: 17.36276476 | C95: -17.36276476 | AX95: 94.82535748 | AY95: 186.6232538
A96: -29.225 | B96: 17.60799818 | C96: -17.60799818 | AX96: 95.1540558 | AY96: 186.6107403
A97: -29.05 | B97: 17.8484285 | C97: -17.8484285 | AX97: 95.48275413 | AY97: 186.5980853
A98: -28.875 | B98: 18.08424729 | C98: -18.08424729 | AX98: 95.81145245 | AY98: 186.5852955
A99: -28.7 | B99: 18.31563267 | C99: -18.31563267 | AX99: 96.14015077 | AY99: 186.5723778
A100: -28.525 | B100: 18.54275061 | C100: -18.54275061 | AX100: 96.46884909 | AY100: 186.559339
A101: -28.35 | B101: 18.76575605 | C101: -18.76575605 | AX101: 96.79754742 | AY101: 186.5461861
A102: -28.175 | B102: 18.98479392 | C102: -18.98479392 | AX102: 97.12624574 | AY102: 186.5329258
A103: -28 | B103: 19.2 | C103: -19.2 | AX103: 97.45494406 | AY103: 186.5195654
A104: -27.825 | B104: 19.41150175 | C104: -19.41150175 | AX104: 97.78364239 | AY104: 186.5061116
A105: -27.65 | B105: 19.61941895 | C105: -19.61941895 | AX105: 98.11234071 | AY105: 186.4925717
A106: -27.475 | B106: 19.82386441 | C106: -19.82386441 | AX106: 98.44103903 | AY106: 186.4789526
A107: -27.3 | B107: 20.02494444 | C107: -20.02494444 | AX107: 98.76973736 | AY107: 186.4652617
A108: -27.125 | B108: 20.22275946 | C108: -20.22275946 | AX108: 99.09843568 | AY108: 186.451506
A109: -26.95 | B109: 20.41740434 | C109: -20.41740434 | AX109: 99.427134 | AY109: 186.4376929
A110: -26.775 | B110: 20.60896892 | C110: -20.60896892 | AX110: 99.75583233 | AY110: 186.4238295
A111: -26.6 | B111: 20.79753832 | C111: -20.79753832 | AX111: 100.0845306 | AY111: 186.4099233
A112: -26.425 | B112: 20.98319327 | C112: -20.98319327 | AX112: 100.413229 | AY112: 186.3959816
A113: -26.25 | B113: 21.16601049 | C113: -21.16601049 | AX113: 100.7419273 | AY113: 186.3820119
A114: -26.075 | B114: 21.34606287 | C114: -21.34606287 | AX114: 101.0706256 | AY114: 186.3680216
A115: -25.9 | B115: 21.5234198 | C115: -21.5234198 | AX115: 101.3993239 | AY115: 186.3540182
A116: -25.725 | B116: 21.69814739 | C116: -21.69814739 | AX116: 101.7280223 | AY116: 186.3400094
A117: -25.55 | B117: 21.87030864 | C117: -21.87030864 | AX117: 102.0567206 | AY117: 186.3260027
A118: -25.375 | B118: 22.0399637 | C118: -22.0399637 | AX118: 102.3854189 | AY118: 186.3120058
A119: -25.2 | B119: 22.20717001 | C119: -22.20717001 | AX119: 102.7141172 | AY119: 186.2980264
A120: -25.025 | B120: 22.37198248 | C120: -22.37198248 | AX120: 103.0428156 | AY120: 186.2840723
A121: -24.85 | B121: 22.53445362 | C121: -22.53445362 | AX121: 103.3715139 | AY121: 186.2701512
A122: -24.675 | B122: 22.69463373 | C122: -22.69463373 | AX122: 103.7002122 | AY122: 186.2562711
A123: -24.5 | B123: 22.85257097 | C123: -22.85257097 | AX123: 104.0289105 | AY123: 186.2424398
A124: -24.325 | B124: 23.00831154 | C124: -23.00831154 | AX124: 104.3576089 | AY124: 186.2286653
A125: -24.15 | B125: 23.16189975 | C125: -23.16189975 | AX125: 104.6863072 | AY125: 186.2149556
A126: -23.975 | B126: 23.31337813 | C126: -23.31337813 | AX126: 105.0150055 | AY126: 186.2013187
A127: -23.8 | B127: =BETA*SQRT(1-(A127/ALPHA)^2) -> 23.46278756 | C127: -23.46278756 | AX127: 105.3437038 | AY127: 186.1877627
A128: =A127+ALPHA/200 -> -23.625 | B128: 23.6101673 | C128: -23.6101673 | AX128: 105.6724021 | AY128: 186.1742957
A129: -23.45 | B129: 23.75555514 | C129: =-B129 -> -23.75555514 | AX129: 106.0011005 | AY129: 186.1609259
A130: -23.275 | B130: 23.89898743 | C130: -23.89898743 | AX130: 106.3297988 | AY130: 186.1476616
A131: -23.1 | B131: 24.04049916 | C131: -24.04049916 | AX131: 106.6584971 | AY131: 186.134511
A132: -22.925 | B132: 24.18012407 | C132: -24.18012407 | AX132: 106.9871954 | AY132: 186.1214825
A133: -22.75 | B133: 24.31789465 | C133: -24.31789465 | AX133: 107.3158938 | AY133: 186.1085843
A134: -22.575 | B134: 24.45384223 | C134: -24.45384223 | AX134: 107.6445921 | AY134: 186.095825
A135: -22.4 | B135: 24.58799707 | C135: -24.58799707 | AX135: 107.9732904 | AY135: 186.0832128
A136: -22.225 | B136: 24.72038835 | C136: -24.72038835 | AX136: 108.3019887 | AY136: 186.0707564
A137: -22.05 | B137: 24.85104424 | C137: -24.85104424 | AX137: 108.6306871 | AY137: 186.0584643
A138: -21.875 | B138: 24.97999199 | C138: -24.97999199 | AX138: 108.9593854 | AY138: 186.0463449
A139: -21.7 | B139: 25.10725791 | C139: -25.10725791 | AX139: 109.2880837 | AY139: 186.034407
A140: -21.525 | B140: 25.23286745 | C140: -25.23286745 | AX140: 109.616782 | AY140: 186.0226592
A141: -21.35 | B141: 25.35684523 | C141: -25.35684523 | AX141: 109.9454803 | AY141: 186.0111101
A142: -21.175 | B142: 25.47921506 | C142: -25.47921506 | AX142: 110.2741787 | AY142: 185.9997685
A143: -21 | B143: 25.6 | C143: -25.6 | AX143: 110.602877 | AY143: 185.9886431
A144: -20.825 | B144: 25.71922238 | C144: -25.71922238 | AX144: 110.9315753 | AY144: 185.9777428
A145: -20.65 | B145: 25.83690384 | C145: -25.83690384 | AX145: 111.2602736 | AY145: 185.9670762
A146: -20.475 | B146: 25.95306533 | C146: -25.95306533 | AX146: 111.588972 | AY146: 185.9566523
A147: -20.3 | B147: 26.06772717 | C147: -26.06772717 | AX147: 111.9176703 | AY147: 185.94648
A148: -20.125 | B148: 26.18090908 | C148: -26.18090908 | AX148: 112.2463686 | AY148: 185.9365681
A149: -19.95 | B149: 26.29263015 | C149: -26.29263015 | AX149: 112.5750669 | AY149: 185.9269257
A150: -19.775 | B150: 26.40290893 | C150: -26.40290893 | AX150: 112.9037653 | AY150: 185.9175615
A151: -19.6 | B151: 26.51176343 | C151: -26.51176343 | AX151: 113.2324636 | AY151: 185.9084847
A152: -19.425 | B152: 26.61921111 | C152: -26.61921111 | AX152: 113.5611619 | AY152: 185.8997042
A153: -19.25 | B153: 26.72526894 | C153: -26.72526894 | AX153: 113.8898602 | AY153: 185.891229
A154: -19.075 | B154: 26.82995341 | C154: -26.82995341 | AX154: 114.2185585 | AY154: 185.8830681
A155: -18.9 | B155: 26.93328053 | C155: -26.93328053 | AX155: 114.5472569 | AY155: 185.8752307
A156: -18.725 | B156: 27.03526586 | C156: -27.03526586 | AX156: 114.8759552 | AY156: 185.8677257
A157: -18.55 | B157: 27.13592453 | C157: -27.13592453 | AX157: 115.2046535 | AY157: 185.8605622
A158: -18.375 | B158: 27.23527125 | C158: -27.23527125 | AX158: 115.5333518 | AY158: 185.8537493
A159: -18.2 | B159: 27.33332033 | C159: -27.33332033 | AX159: 115.8620502 | AY159: 185.8472961
A160: -18.025 | B160: 27.43008567 | C160: -27.43008567 | AX160: 116.1907485 | AY160: 185.8412117
A161: -17.85 | B161: 27.52558083 | C161: -27.52558083 | AX161: 116.5194468 | AY161: 185.835505
A162: -17.675 | B162: 27.61981897 | C162: -27.61981897 | AX162: 116.8481451 | AY162: 185.8301853
A163: -17.5 | B163: 27.71281292 | C163: -27.71281292 | AX163: 117.1768435 | AY163: 185.8252615
A164: -17.325 | B164: 27.80457516 | C164: -27.80457516 | AX164: 117.5055418 | AY164: 185.8207428
A165: -17.15 | B165: 27.89511785 | C165: -27.89511785 | AX165: 117.8342401 | AY165: 185.8166381
A166: -16.975 | B166: 27.98445283 | C166: -27.98445283 | AX166: 118.1629384 | AY166: 185.8129565
A167: -16.8 | B167: 28.07259162 | C167: -28.07259162 | AX167: 118.4916367 | AY167: 185.809707
A168: -16.625 | B168: 28.15954545 | C168: -28.15954545 | AX168: 118.8203351 | AY168: 185.8068986
A169: -16.45 | B169: 28.24532528 | C169: -28.24532528 | AX169: 119.1490334 | AY169: 185.8045403
A170: -16.275 | B170: 28.32994176 | C170: -28.32994176 | AX170: 119.4777317 | AY170: 185.8026409
A171: -16.1 | B171: 28.41340529 | C171: -28.41340529 | AX171: 119.80643 | AY171: 185.8012094
A172: -15.925 | B172: 28.495726 | C172: -28.495726 | AX172: 120.1351284 | AY172: 185.8002546
A173: -15.75 | B173: 28.57691376 | C173: -28.57691376 | AX173: 120.4638267 | AY173: 185.7997855
A174: -15.575 | B174: 28.65697821 | C174: -28.65697821 | AX174: 120.792525 | AY174: 185.7998106
A175: -15.4 | B175: 28.73592873 | C175: -28.73592873 | AX175: 121.1212233 | AY175: 185.8003388
A176: -15.225 | B176: 28.81377448 | C176: -28.81377448 | AX176: 121.4499217 | AY176: 185.8013787
A177: -15.05 | B177: 28.8905244 | C177: -28.8905244 | AX177: 121.77862 | AY177: 185.802939
A178: -14.875 | B178: 28.96618718 | C178: -28.96618718 | AX178: 122.1073183 | AY178: 185.8050282
A179: -14.7 | B179: 29.04077134 | C179: -29.04077134 | AX179: 122.4360166 | AY179: 185.8076548
A180: -14.525 | B180: 29.11428515 | C180: -29.11428515 | AX180: 122.764715 | AY180: 185.8108272
A181: -14.35 | B181: 29.18673671 | C181: -29.18673671 | AX181: 123.0934133 | AY181: 185.8145538
A182: -14.175 | B182: 29.25813391 | C182: -29.25813391 | AX182: 123.4221116 | AY182: 185.8188428
A183: -14 | B183: 29.32848445 | C183: -29.32848445 | AX183: 123.7508099 | AY183: 185.8237024
A184: -13.825 | B184: 29.39779584 | C184: -29.39779584 | AX184: 124.0795082 | AY184: 185.8291407
A185: -13.65 | B185: 29.46607541 | C185: -29.46607541 | AX185: 124.4082066 | AY185: 185.8351657
A186: -13.475 | B186: 29.53333032 | C186: -29.53333032 | AX186: 124.7369049 | AY186: 185.8417854
A187: -13.3 | B187: 29.59956756 | C187: -29.59956756 | AX187: 125.0656032 | AY187: 185.8490074
A188: -13.125 | B188: 29.66479395 | C188: -29.66479395 | AX188: 125.3943015 | AY188: 185.8568396
A189: -12.95 | B189: 29.72901613 | C189: -29.72901613 | AX189: 125.7229999 | AY189: 185.8652895
A190: -12.775 | B190: 29.7922406 | C190: -29.7922406 | AX190: 126.0516982 | AY190: 185.8743645
A191: -12.6 | B191: =BETA*SQRT(1-(A191/ALPHA)^2) -> 29.8544737 | C191: -29.8544737 | AX191: 126.3803965 | AY191: 185.884072
A192: =A191+ALPHA/200 -> -12.425 | B192: 29.91572162 | C192: -29.91572162 | AX192: 126.7090948 | AY192: 185.8944193
A193: -12.25 | B193: 29.97599039 | C193: =-B193 -> -29.97599039 | AX193: 127.0377932 | AY193: 185.9054133
A194: -12.075 | B194: 30.03528592 | C194: -30.03528592 | AX194: 127.3664915 | AY194: 185.917061
A195: -11.9 | B195: 30.09361394 | C195: -30.09361394 | AX195: 127.6951898 | AY195: 185.9293693
A196: -11.725 | B196: 30.15098008 | C196: -30.15098008 | AX196: 128.0238881 | AY196: 185.9423447
A197: -11.55 | B197: 30.20738982 | C197: -30.20738982 | AX197: 128.3525864 | AY197: 185.9559938
A198: -11.375 | B198: 30.26284851 | C198: -30.26284851 | AX198: 128.6812848 | AY198: 185.9703229
A199: -11.2 | B199: 30.31736136 | C199: -30.31736136 | AX199: 129.0099831 | AY199: 185.9853381
A200: -11.025 | B200: 30.37093347 | C200: -30.37093347 | AX200: 129.3386814 | AY200: 186.0010455
... 263 more rows
